Workbook

Sheet Consolidé
B2: Facturés /mois | C2: 2021-01-01 | E2: 2021-02-01 | G2: 2021-03-01 | I2: 2021-04-01 | K2: 2021-05-01 | M2: 2021-06-01 | O2: 2021-07-01 | Q2: 2021-08-01 | S2: 2021-09-01 | U2: 2021-10-01 | W2: 2021-11-01 | Y2: 2021-12-01 | AA2: Total
C3: CA | D3: Marge | E3: CA | F3: Marge | G3: CA | H3: Marge | I3: CA | J3: Marge | K3: CA | L3: Marge | M3: CA | N3: Marge | O3: CA | P3: Marge | Q3: CA | R3: Marge | S3: CA | T3: Marge | U3: CA | V3: Marge | W3: CA | X3: Marge | Y3: CA | Z3: Marge | AA3: CA | AB3: Marge
B4: Freelance | C4: ='Janvier 21'!$AE27 -> 11600 | D4: ='Janvier 21'!$AF27 -> 1600 | E4: ='Fevrier 21'!$AG27 -> 0 | F4: ='Fevrier 21'!$AH27 -> 0 | G4: ='Mars 21'!$AE27 -> 0 | H4: ='Mars 21'!$AF27 -> 0 | I4: ='Avril 21'!$AE27 -> 0 | J4: ='Avril 21'!$AF27 -> 0 | K4: ='Mai 21'!$AE27 -> 0 | L4: ='Mai 21'!$AF27 -> 0 | M4: ='Juin 21'!$AE27 -> 0 | N4: ='Juin 21'!$AF27 -> 0 | O4: ='Juillet 21'!$AE27 -> 0 | P4: ='Juillet 21'!$AF27 -> 0 | Q4: ='Aout 21'!$AE27 -> 0 | R4: ='Aout 21'!$AF27 -> 0 | S4: ='Septembre 21'!$AE27 -> 0 | T4: ='Septembre 21'!$AF27 -> 0 | U4: ='Octobre 21'!$AE27 -> 0 | V4: ='Octobre 21'!$AF27 -> 0 | W4: ='Novembre 21'!$AE27 -> 0 | X4: ='Novembre 21'!$AF27 -> 0 | Y4: ='Décembre 21'!$AE27 -> 0 | Z4: ='Décembre 21'!$AF27 -> 0 | AA4: =SUM(C4,E4,G4,I4,K4,M4,O4,Q4,,S4,U4,W4,Y4) -> 11600 | AB4: =SUM(D4,F4,H4,J4,L4,N4,P4,R4,,T4,V4,X4,Z4) -> 1600
B5: RECRUTEMENT | C5: ='Janvier 21'!$R37+'Janvier 21'!$S37 -> 9000 | D5: ='Janvier 21'!$R37 -> 7200 | E5: ='Fevrier 21'!$T37+'Fevrier 21'!$U37 -> 0 | F5: ='Fevrier 21'!$U37 -> 0 | G5: ='Mars 21'!$R37+'Mars 21'!$S37 -> 0 | H5: ='Mars 21'!$S37 -> 0 | I5: ='Avril 21'!$R37+'Avril 21'!$S37 -> 0 | J5: ='Avril 21'!$S37 -> 0 | K5: ='Mai 21'!$R37+'Mai 21'!$S37 -> 0 | L5: ='Mai 21'!$S37 -> 0 | M5: ='Juin 21'!$R37+'Juin 21'!$S37 -> 0 | N5: ='Juin 21'!$S37 -> 0 | O5: ='Juillet 21'!$R37+'Juillet 21'!$S37 -> 0 | P5: ='Juillet 21'!$S37 -> 0 | Q5: ='Aout 21'!$R37+'Aout 21'!$S37 -> 0 | R5: ='Aout 21'!$S37 -> 0 | S5: ='Septembre 21'!$R37+'Septembre 21'!$S37 -> 0 | T5: ='Septembre 21'!$S37 -> 0 | U5: ='Octobre 21'!$R37+'Octobre 21'!$S37 -> 0 | V5: ='Octobre 21'!$S37 -> 0 | W5: ='Novembre 21'!$R37+'Novembre 21'!$S37 -> 0 | X5: ='Novembre 21'!$S37 -> 0 | Y5: ='Décembre 21'!$R37+'Décembre 21'!$S37 -> 0 | Z5: ='Décembre 21'!$S37 -> 0 | AA5: =SUM(C5,E5,G5,I5,K5,M5,O5,Q5,,S5,U5,W5,Y5) -> 9000 | AB5: =SUM(D5,F5,H5,J5,L5,N5,P5,R5,,T5,V5,X5,Z5) -> 7200
B6: CUMULE | C6: =C4+C5 -> 20600 | D6: 8800 | E6: 0 | F6: 0 | G6: 0 | H6: 0 | I6: 0 | J6: 0 | K6: 0 | L6: 0 | M6: 0 | N6: 0 | O6: 0 | P6: 0 | Q6: 0 | R6: 0 | S6: 0 | T6: 0 | U6: 0 | V6: 0 | W6: 0 | X6: 0 | Y6: 0 | Z6: 0 | AA6: 20600 | AB6: 8800
C12: Prévisionnel | D12: En cours
B13: Freelance | D13: =AA4 -> 11600
B14: CA/an | C14: =SUM('Janvier 21'!S27,'Fevrier 21'!U27,'Mars 21'!S27,'Avril 21'!S27,'Mai 21'!S27,'Juin 21'!S27,'Juillet 21'!S27,'Aout 21'!S27,'Septembre 21'!S27,'Octobre 21'!S27,'Novembre 21'!S27,'Décembre 21'!S27) -> 11600 | D14: =IF(B15<=15000,"Oui","") ->  | E14: =IF(C15>=15000,IF(C15<=30000,"Oui",""),"") ->  | F14: =IF(C15>=30000,IF(C15<=60000,"Oui",""),"") ->  | G14: =IF(C15>=60000,IF(C15<=90000,"Oui",""),"") ->  | H14: =IF(C15>=90000,IF(C15<=120000,"Oui",""),"") -> 
B15: Marge Cumulée /an/brut | C15: =SUM('Janvier 21'!T27,'Fevrier 21'!V27,'Mars 21'!T27,'Avril 21'!T27,'Mai 21'!T27,'Juin 21'!T27,'Juillet 21'!T27,'Aout 21'!T27,'Septembre 21'!T27,'Octobre 21'!T27,'Novembre 21'!T27,'Décembre 21'!T27) -> 1600 | D15: 0/15000€ | E15: 15K€/30K€ | F15: 30K€/60K€ | G15: 60K€/90K€ | H15: 90K€/120K€
B16: Part WOF | C16: =C15-C17 -> 640 | D16: =1-D17 -> 0.4 | E16: =1-E17 -> 0.38 | F16: =1-F17 -> 0.35 | G16: =1-G17 -> 0.3 | H16: =1-H17 -> 0.25
B17: Part Sandrine | C17: =IF(C15<=15000,PRODUCT(C15,D17),IF(C15<=30000,PRODUCT(C15,E17),IF(C15<=60000,PRODUCT(C15,F17),IF(C15<=90000,PRODUCT(C15,G17),IF(C15<=120000,PRODUCT(C15,H17),))))) -> 960 | D17: 0.6 | E17: 0.62 | F17: 0.65 | G17: 0.7 | H17: 0.75
B18: Charge | C18: =C17-(PRODUCT(C17,D18)) -> 739.2 | D18: 0.23
B19: Revenu Net mensuel hors IR | C19: =C18/12 -> 61.6
B22: RECRUTEMENT
C23: Sandrine | D23: WOF
B24: Marge Cumulée total placements | C24: =SUM('Janvier 21'!R37,'Fevrier 21'!T37,'Mars 21'!R37,'Avril 21'!S37,'Mai 21'!R37,'Juin 21'!R37,'Juillet 21'!R37,'Aout 21'!R37,'Septembre 21'!R37,'Octobre 21'!R37,'Novembre 21'!R37,'Décembre 21'!R37) -> 7200 | D24: =SUM('Janvier 21'!S37,'Fevrier 21'!U37,'Mars 21'!S37,'Avril 21'!S37,'Mai 21'!S37,'Juin 21'!S37,'Juillet 21'!S37,'Aout 21'!S37,'Septembre 21'!S37,'Octobre 21'!S37,'Novembre 21'!S37,'Décembre 21'!S37) -> 1800
B26: Revenu Net | C26: =C24-(PRODUCT(C24,D26)) -> 5544 | D26: 0.23
B27: Revenu Net mensuel hors IR | C27: =C26/8 -> 693
B29: CUMULE | C29: Prévisionnel | D29: En cours
B31: Marge cumulée | C31: =SUM(C15,C24) -> 8800 | D31: =D6 -> 8800
B32: Part WOF Cumulée | C32: =SUM(C16,D24) -> 2440
B33: Part Sandrine | C33: =C31-C32 -> 6360
B34: Revenu Net | C34: =C33-(PRODUCT(C33,D34)) -> 4897.2 | D34: 0.23
B35: Revenu Net mensuel hors IR | C35: =C34/12 -> 408.1

Sheet Fichier Freelance

Sheet Calendrier
A1: S53 | B1: Lun | C1: Mar. | D1: Mer. | E1: Jeu. | F1: Ven. | G1: Sam. | H1: Dim. | K1: Jours feries si ouvrés | L1: Jours feries
A2: 1 | F2: 2021-01-01 | G2: 2021-01-02 | H2: 2021-01-03 | K2: =IF(F3=1,L2,"") -> 2020-01-01 | L2: 2020-01-01
F3: 1 | G3: 0 | H3: 0 | K3: =IF(G41=1,L3,0) -> 00:00:00 | L3: 2020-05-01
A4: =SUM(A2,1) -> 2 | B4: =H2+1 -> 2021-01-04 | C4: =B4+1 -> 2021-01-05 | D4: 2021-01-06 | E4: 2021-01-07 | F4: 2021-01-08 | G4: 2021-01-09 | H4: 2021-01-10 | K4: =IF(G43=1,L4,0) -> 00:00:00 | L4: 2020-05-08
B5: 1 | C5: 1 | D5: 1 | E5: 1 | F5: 1 | G5: 0 | H5: 0 | K5: =IF(D65=1,L5,"") -> 2020-07-14 | L5: 2020-07-14
A6: =SUM(A4,1) -> 3 | B6: =H4+1 -> 2021-01-11 | C6: =B6+1 -> 2021-01-12 | D6: 2021-01-13 | E6: 2021-01-14 | F6: 2021-01-15 | G6: 2021-01-16 | H6: 2021-01-17 | K6: =IF(H73=1,L6,0) -> 00:00:00 | L6: 2020-08-15
B7: 1 | C7: 1 | D7: 1 | E7: 1 | F7: 1 | G7: 0 | H7: 0 | K7: =IF(B101=1,L7,"") -> 2020-11-01 | L7: 2020-11-01
A8: =SUM(A6,1) -> 4 | B8: =H6+1 -> 2021-01-18 | C8: =B8+1 -> 2021-01-19 | D8: 2021-01-20 | E8: 2021-01-21 | F8: 2021-01-22 | G8: 2021-01-23 | H8: 2021-01-24 | K8: =IF(E104=1,L8,"") -> 2020-11-11 | L8: 2020-11-11
B9: 1 | C9: 1 | D9: 1 | E9: 1 | F9: 1 | G9: 0 | H9: 0 | K9: =IF(G117=1,L9,0) -> 00:00:00 | L9: 2020-12-25
A10: =SUM(A8,1) -> 5 | B10: =H8+1 -> 2021-01-25 | C10: =B10+1 -> 2021-01-26 | D10: 2021-01-27 | E10: 2021-01-28 | F10: 2021-01-29 | G10: 2021-01-30 | H10: 2021-01-31
B11: 1 | C11: 1 | D11: 1 | E11: 1 | F11: 1 | G11: 0 | H11: 0
A13: =SUM(A10,1) -> 6 | B13: =H10+1 -> 2021-02-01 | C13: =B13+1 -> 2021-02-02 | D13: 2021-02-03 | E13: 2021-02-04 | F13: 2021-02-05 | G13: 2021-02-06 | H13: 2021-02-07
B14: 1 | C14: 1 | D14: 1 | E14: 1 | F14: 1 | G14: 0 | H14: 0
A15: =SUM(A13,1) -> 7 | B15: =H13+1 -> 2021-02-08 | C15: =B15+1 -> 2021-02-09 | D15: 2021-02-10 | E15: 2021-02-11 | F15: 2021-02-12 | G15: 2021-02-13 | H15: 2021-02-14
B16: 1 | C16: 1 | D16: 1 | E16: 1 | F16: 1 | G16: 0 | H16: 0
A17: =SUM(A15,1) -> 8 | B17: =H15+1 -> 2021-02-15 | C17: =B17+1 -> 2021-02-16 | D17: 2021-02-17 | E17: 2021-02-18 | F17: 2021-02-19 | G17: 2021-02-20 | H17: 2021-02-21
B18: 1 | C18: 1 | D18: 1 | E18: 1 | F18: 1 | G18: 0 | H18: 0
A19: =SUM(A17,1) -> 9 | B19: =H17+1 -> 2021-02-22 | C19: =B19+1 -> 2021-02-23 | D19: 2021-02-24 | E19: 2021-02-25 | F19: 2021-02-26 | G19: 2021-02-27 | H19: 2021-02-28
B20: 1 | C20: 1 | D20: 1 | E20: 1 | F20: 1 | G20: 0 | H20: 0
A22: =SUM(A19,1) -> 10 | B22: =H19+1 -> 2021-03-01 | C22: =B22+1 -> 2021-03-02 | D22: 2021-03-03 | E22: 2021-03-04 | F22: 2021-03-05 | G22: 2021-03-06 | H22: 2021-03-07
B23: 1 | C23: 1 | D23: 1 | E23: 1 | F23: 1 | G23: 0 | H23: 0
A24: =SUM(A22,1) -> 11 | B24: =H22+1 -> 2021-03-08 | C24: =B24+1 -> 2021-03-09 | D24: 2021-03-10 | E24: 2021-03-11 | F24: 2021-03-12 | G24: 2021-03-13 | H24: 2021-03-14
B25: 1 | C25: 1 | D25: 1 | E25: 1 | F25: 1 | G25: 0 | H25: 0
A26: =SUM(A24,1) -> 12 | B26: =H24+1 -> 2021-03-15 | C26: =B26+1 -> 2021-03-16 | D26: 2021-03-17 | E26: 2021-03-18 | F26: 2021-03-19 | G26: 2021-03-20 | H26: 2021-03-21
B27: 1 | C27: 1 | D27: 1 | E27: 1 | F27: 1 | G27: 0 | H27: 0
A28: =SUM(A26,1) -> 13 | B28: =H26+1 -> 2021-03-22 | C28: =B28+1 -> 2021-03-23 | D28: 2021-03-24 | E28: 2021-03-25 | F28: 2021-03-26 | G28: 2021-03-27 | H28: 2021-03-28
B29: 1 | C29: 1 | D29: 1 | E29: 1 | F29: 1 | G29: 0 | H29: 0
A31: =SUM(A28,1) -> 14 | B31: =H28+1 -> 2021-03-29 | C31: =B31+1 -> 2021-03-30 | D31: 2021-03-31 | E31: 2021-04-01 | F31: 2021-04-02 | G31: 2021-04-03 | H31: 2021-04-04
B32: 1 | C32: 1 | D32: 1 | E32: 1 | F32: 1 | G32: 0 | H32: 0
A33: =SUM(A31,1) -> 15 | B33: =H31+1 -> 2021-04-05 | C33: =B33+1 -> 2021-04-06 | D33: 2021-04-07 | E33: 2021-04-08 | F33: 2021-04-09 | G33: 2021-04-10 | H33: 2021-04-11
B34: 1 | C34: 1 | D34: 1 | E34: 1 | F34: 1 | G34: 0 | H34: 0
A35: =SUM(A33,1) -> 16 | B35: =H33+1 -> 2021-04-12 | C35: =B35+1 -> 2021-04-13 | D35: 2021-04-14 | E35: 2021-04-15 | F35: 2021-04-16 | G35: 2021-04-17 | H35: 2021-04-18
B36: 1 | C36: 1 | D36: 1 | E36: 1 | F36: 1 | G36: 0 | H36: 0
A37: =SUM(A35,1) -> 17 | B37: =H35+1 -> 2021-04-19 | C37: =B37+1 -> 2021-04-20 | D37: 2021-04-21 | E37: 2021-04-22 | F37: 2021-04-23 | G37: 2021-04-24 | H37: 2021-04-25
B38: 1 | C38: 1 | D38: 1 | E38: 1 | F38: 1 | G38: 0 | H38: 0
A40: =SUM(A37,1) -> 18 | B40: =H37+1 -> 2021-04-26 | C40: =B40+1 -> 2021-04-27 | D40: 2021-04-28 | E40: 2021-04-29 | F40: 2021-04-30 | G40: 2021-05-01 | H40: 2021-05-02
B41: 1 | C41: 1 | D41: 1 | E41: 1 | F41: 1 | G41: 0 | H41: 0
A42: =SUM(A40,1) -> 19 | B42: =H40+1 -> 2021-05-03 | C42: =B42+1 -> 2021-05-04 | D42: 2021-05-05 | E42: 2021-05-06 | F42: 2021-05-07 | G42: 2021-05-08 | H42: 2021-05-09
B43: 1 | C43: 1 | D43: 1 | E43: 1 | F43: 1 | G43: 0 | H43: 0
A44: =SUM(A42,1) -> 20 | B44: =H42+1 -> 2021-05-10 | C44: =B44+1 -> 2021-05-11 | D44: 2021-05-12 | E44: 2021-05-13 | F44: 2021-05-14 | G44: 2021-05-15 | H44: 2021-05-16
B45: 1 | C45: 1 | D45: 1 | E45: 1 | F45: 1 | G45: 0 | H45: 0
A46: =SUM(A44,1) -> 21 | B46: =H44+1 -> 2021-05-17 | C46: =B46+1 -> 2021-05-18 | D46: 2021-05-19 | E46: 2021-05-20 | F46: 2021-05-21 | G46: 2021-05-22 | H46: 2021-05-23
B47: 1 | C47: 1 | D47: 1 | E47: 1 | F47: 1 | G47: 0 | H47: 0
A49: =SUM(A46,1) -> 22 | B49: =H46+1 -> 2021-05-24 | C49: =B49+1 -> 2021-05-25 | D49: 2021-05-26 | E49: 2021-05-27 | F49: 2021-05-28 | G49: 2021-05-29 | H49: 2021-05-30
B50: 1 | C50: 1 | D50: 1 | E50: 1 | F50: 1 | G50: 0 | H50: 0
A51: =SUM(A49,1) -> 23 | B51: =H49+1 -> 2021-05-31 | C51: =B51+1 -> 2021-06-01 | D51: 2021-06-02 | E51: 2021-06-03 | F51: 2021-06-04 | G51: 2021-06-05 | H51: 2021-06-06
B52: 1 | C52: 1 | D52: 1 | E52: 1 | F52: 1 | G52: 0 | H52: 0
A53: =SUM(A51,1) -> 24 | B53: =H51+1 -> 2021-06-07 | C53: =B53+1 -> 2021-06-08 | D53: 2021-06-09 | E53: 2021-06-10 | F53: 2021-06-11 | G53: 2021-06-12 | H53: 2021-06-13
B54: 1 | C54: 1 | D54: 1 | E54: 1 | F54: 1 | G54: 0 | H54: 0
A55: =SUM(A53,1) -> 25 | B55: =H53+1 -> 2021-06-14 | C55: =B55+1 -> 2021-06-15 | D55: 2021-06-16 | E55: 2021-06-17 | F55: 2021-06-18 | G55: 2021-06-19 | H55: 2021-06-20
B56: 1 | C56: 1 | D56: 1 | E56: 1 | F56: 1 | G56: 0 | H56: 0
A58: =SUM(A55,1) -> 26 | B58: =H55+1 -> 2021-06-21 | C58: =B58+1 -> 2021-06-22 | D58: 2021-06-23 | E58: 2021-06-24 | F58: 2021-06-25 | G58: 2021-06-26 | H58: 2021-06-27
B59: 1 | C59: 1 | D59: 1 | E59: 1 | F59: 1 | G59: 0 | H59: 0
A60: =SUM(A58,1) -> 27 | B60: =H58+1 -> 2021-06-28 | C60: =B60+1 -> 2021-06-29 | D60: 2021-06-30 | E60: 2021-07-01 | F60: 2021-07-02 | G60: 2021-07-03 | H60: 2021-07-04
B61: 1 | C61: 1 | D61: 1 | E61: 1 | F61: 1 | G61: 0 | H61: 0
A62: =SUM(A60,1) -> 28 | B62: =H60+1 -> 2021-07-05 | C62: =B62+1 -> 2021-07-06 | D62: 2021-07-07 | E62: 2021-07-08 | F62: 2021-07-09 | G62: 2021-07-10 | H62: 2021-07-11
B63: 1 | C63: 1 | D63: 1 | E63: 1 | F63: 1 | G63: 0 | H63: 0
A64: =SUM(A62,1) -> 29 | B64: =H62+1 -> 2021-07-12 | C64: =B64+1 -> 2021-07-13 | D64: 2021-07-14 | E64: 2021-07-15 | F64: 2021-07-16 | G64: 2021-07-17 | H64: 2021-07-18
B65: 1 | C65: 1 | D65: 1 | E65: 1 | F65: 1 | G65: 0 | H65: 0
A67: =SUM(A64,1) -> 30 | B67: =H64+1 -> 2021-07-19 | C67: =B67+1 -> 2021-07-20 | D67: 2021-07-21 | E67: 2021-07-22 | F67: 2021-07-23 | G67: 2021-07-24 | H67: 2021-07-25
B68: 1 | C68: 1 | D68: 1 | E68: 1 | F68: 1 | G68: 0 | H68: 0
A69: =SUM(A67,1) -> 31 | B69: =H67+1 -> 2021-07-26 | C69: =B69+1 -> 2021-07-27 | D69: 2021-07-28 | E69: 2021-07-29 | F69: 2021-07-30 | G69: 2021-07-31 | H69: 2021-08-01
B70: 1 | C70: 1 | D70: 1 | E70: 1 | F70: 1 | G70: 0 | H70: 0
A71: =SUM(A69,1) -> 32 | B71: =H69+1 -> 2021-08-02 | C71: =B71+1 -> 2021-08-03 | D71: 2021-08-04 | E71: 2021-08-05 | F71: 2021-08-06 | G71: 2021-08-07 | H71: 2021-08-08
B72: 1 | C72: 1 | D72: 1 | E72: 1 | F72: 1 | G72: 0 | H72: 0
A73: =SUM(A71,1) -> 33 | B73: =H71+1 -> 2021-08-09 | C73: =B73+1 -> 2021-08-10 | D73: 2021-08-11 | E73: 2021-08-12 | F73: 2021-08-13 | G73: 2021-08-14 | H73: 2021-08-15
B74: 1 | C74: 1 | D74: 1 | E74: 1 | F74: 1 | G74: 0 | H74: 0
A76: =SUM(A73,1) -> 34 | B76: =H73+1 -> 2021-08-16 | C76: =B76+1 -> 2021-08-17 | D76: 2021-08-18 | E76: 2021-08-19 | F76: 2021-08-20 | G76: 2021-08-21 | H76: 2021-08-22
B77: 1 | C77: 1 | D77: 1 | E77: 1 | F77: 1 | G77: 0 | H77: 0
A78: =SUM(A76,1) -> 35 | B78: =H76+1 -> 2021-08-23 | C78: =B78+1 -> 2021-08-24 | D78: 2021-08-25 | E78: 2021-08-26 | F78: 2021-08-27 | G78: 2021-08-28 | H78: 2021-08-29
B79: 1 | C79: 1 | D79: 1 | E79: 1 | F79: 1 | G79: 0 | H79: 0
A80: =SUM(A78,1) -> 36 | B80: =H78+1 -> 2021-08-30 | C80: =B80+1 -> 2021-08-31 | D80: 2021-09-01 | E80: 2021-09-02 | F80: 2021-09-03 | G80: 2021-09-04 | H80: 2021-09-05
B81: 1 | C81: 1 | D81: 1 | E81: 1 | F81: 1 | G81: 0 | H81: 0
A82: =SUM(A80,1) -> 37 | B82: =H80+1 -> 2021-09-06 | C82: =B82+1 -> 2021-09-07 | D82: 2021-09-08 | E82: 2021-09-09 | F82: 2021-09-10 | G82: 2021-09-11 | H82: 2021-09-12
B83: 1 | C83: 1 | D83: 1 | E83: 1 | F83: 1 | G83: 0 | H83: 0
A85: =SUM(A82,1) -> 38 | B85: =H82+1 -> 2021-09-13 | C85: =B85+1 -> 2021-09-14 | D85: 2021-09-15 | E85: 2021-09-16 | F85: 2021-09-17 | G85: 2021-09-18 | H85: 2021-09-19
B86: 1 | C86: 1 | D86: 1 | E86: 1 | F86: 1 | G86: 0 | H86: 0
A87: =SUM(A85,1) -> 39 | B87: =H85+1 -> 2021-09-20 | C87: =B87+1 -> 2021-09-21 | D87: 2021-09-22 | E87: 2021-09-23 | F87: 2021-09-24 | G87: 2021-09-25 | H87: 2021-09-26
B88: 1 | C88: 1 | D88: 1 | E88: 1 | F88: 1 | G88: 0 | H88: 0
A89: =SUM(A87,1) -> 40 | B89: =H87+1 -> 2021-09-27 | C89: =B89+1 -> 2021-09-28 | D89: 2021-09-29 | E89: 2021-09-30 | F89: 2021-10-01 | G89: 2021-10-02 | H89: 2021-10-03
B90: 1 | C90: 1 | D90: 1 | E90: 1 | F90: 1 | G90: 0 | H90: 0
A91: =SUM(A89,1) -> 41 | B91: =H89+1 -> 2021-10-04 | C91: =B91+1 -> 2021-10-05 | D91: 2021-10-06 | E91: 2021-10-07 | F91: 2021-10-08 | G91: 2021-10-09 | H91: 2021-10-10
B92: 1 | C92: 1 | D92: 1 | E92: 1 | F92: 1 | G92: 0 | H92: 0
A94: =SUM(A91,1) -> 42 | B94: =H91+1 -> 2021-10-11 | C94: =B94+1 -> 2021-10-12 | D94: 2021-10-13 | E94: 2021-10-14 | F94: 2021-10-15 | G94: 2021-10-16 | H94: 2021-10-17
B95: 1 | C95: 1 | D95: 1 | E95: 1 | F95: 1 | G95: 0 | H95: 0
A96: =SUM(A94,1) -> 43 | B96: =H94+1 -> 2021-10-18 | C96: =B96+1 -> 2021-10-19 | D96: 2021-10-20 | E96: 2021-10-21 | F96: 2021-10-22 | G96: 2021-10-23 | H96: 2021-10-24
B97: 1 | C97: 1 | D97: 1 | E97: 1 | F97: 1 | G97: 0 | H97: 0
A98: =SUM(A96,1) -> 44 | B98: =H96+1 -> 2021-10-25 | C98: =B98+1 -> 2021-10-26 | D98: 2021-10-27 | E98: 2021-10-28 | F98: 2021-10-29 | G98: 2021-10-30 | H98: 2021-10-31
B99: 1 | C99: 1 | D99: 1 | E99: 1 | F99: 1 | G99: 0 | H99: 0
A100: =SUM(A98,1) -> 45 | B100: =H98+1 -> 2021-11-01 | C100: =B100+1 -> 2021-11-02 | D100: 2021-11-03 | E100: 2021-11-04 | F100: 2021-11-05 | G100: 2021-11-06 | H100: 2021-11-07
B101: 1 | C101: 1 | D101: 1 | E101: 1 | F101: 1 | G101: 0 | H101: 0
A103: =SUM(A100,1) -> 46 | B103: =H100+1 -> 2021-11-08 | C103: =B103+1 -> 2021-11-09 | D103: 2021-11-10 | E103: 2021-11-11 | F103: 2021-11-12 | G103: 2021-11-13 | H103: 2021-11-14
B104: 1 | C104: 1 | D104: 1 | E104: 1 | F104: 1 | G104: 0 | H104: 0
A105: =SUM(A103,1) -> 47 | B105: =H103+1 -> 2021-11-15 | C105: =B105+1 -> 2021-11-16 | D105: 2021-11-17 | E105: 2021-11-18 | F105: 2021-11-19 | G105: 2021-11-20 | H105: 2021-11-21
B106: 1 | C106: 1 | D106: 1 | E106: 1 | F106: 1 | G106: 0 | H106: 0
A107: =SUM(A105,1) -> 48 | B107: =H105+1 -> 2021-11-22 | C107: =B107+1 -> 2021-11-23 | D107: 2021-11-24 | E107: 2021-11-25 | F107: 2021-11-26 | G107: 2021-11-27 | H107: 2021-11-28
B108: 1 | C108: 1 | D108: 1 | E108: 1 | F108: 1 | G108: 0 | H108: 0
A109: =SUM(A107,1) -> 49 | B109: =H107+1 -> 2021-11-29 | C109: =B109+1 -> 2021-11-30 | D109: 2021-12-01 | E109: 2021-12-02 | F109: 2021-12-03 | G109: 2021-12-04 | H109: 2021-12-05
B110: 1 | C110: 1 | D110: 1 | E110: 1 | F110: 1 | G110: 0 | H110: 0
A112: =SUM(A109,1) -> 50 | B112: =H109+1 -> 2021-12-06 | C112: =B112+1 -> 2021-12-07 | D112: 2021-12-08 | E112: 2021-12-09 | F112: 2021-12-10 | G112: 2021-12-11 | H112: 2021-12-12
B113: 1 | C113: 1 | D113: 1 | E113: 1 | F113: 1 | G113: 0 | H113: 0
A114: =SUM(A112,1) -> 51 | B114: =H112+1 -> 2021-12-13 | C114: =B114+1 -> 2021-12-14 | D114: 2021-12-15 | E114: 2021-12-16 | F114: 2021-12-17 | G114: 2021-12-18 | H114: 2021-12-19
B115: 1 | C115: 1 | D115: 1 | E115: 1 | F115: 1 | G115: 0 | H115: 0
A116: =SUM(A114,1) -> 52 | B116: =H114+1 -> 2021-12-20 | C116: =B116+1 -> 2021-12-21 | D116: 2021-12-22 | E116: 2021-12-23 | F116: 2021-12-24 | G116: 2021-12-25 | H116: 2021-12-26
B117: 1 | C117: 1 | D117: 1 | E117: 1 | F117: 1 | G117: 0 | H117: 0
A118: =SUM(A116,1) -> 53 | B118: =H116+1 -> 2021-12-27 | C118: =B118+1 -> 2021-12-28 | D118: 2021-12-29 | E118: 2021-12-30 | F118: 2021-12-31 | G118: 2022-01-01 | H118: 2022-01-02
B119: 1 | C119: 1 | D119: 1 | E119: 1 | F119: 1 | G119: 0 | H119: 0

Sheet Janvier 21
A1: =nomfeuille() ->  | AE1: 2021
E2: OK | F2: A faire | G2: En attente | J2: PORTAGE | L2: EIRL | M2: SARL | N2: SASU | O2: Micro | Q2: RCO | R2: Rclient | S2: Oui | T2: Non | U2: =Calendrier!F2 -> 2021-01-01 | V2: =Calendrier!H10 -> 2021-01-31
A5: Free-lance
A6: COLLABORATEUR | L6: NEGOCIATION | R6: CONTRAT | W6: CLIENT | AA6: TIME SHEET
A7: NOM | B7: Prénom | C7: CONTACT | D7: Statut | E7: ID | F7: RIB | G7: K-BIS | H7: ASS-PRO | I7: Nb de jours | J7: TJM achat | K7: TJM contrat | L7: TJM vente | M7: Marge | N7: Effort | O7: TJM Apres effort | P7: Durée contrat | Q7: Facture | R7: Nb Jours/contrat | S7: CA total | T7: Marge Contrat | U7: Debut de contrat | V7: Fin de contrat | W7: CONTACT | X7: FONCTION | Y7: TELEPHONE | Z7: MAIL | AA7: Time sheet | AB7: Nb jours prévus | AC7: Nb jours restants contrat | AD7: =_xlfn.CONCAT("Nb jours/ ",nomfeuille()," / Facturés") ->  | AE7: =_xlfn.CONCAT("Chiffre / ",nomfeuille()) ->  | AF7: =_xlfn.CONCAT("Chiffre Marge / ",nomfeuille()) -> 
A8: test | B8: Thierry | C8: 6 | D8: PORTAGE | E8: OK | F8: A faire | G8: En attente | H8: OK | I8: 20 | J8: 500 | K8: 500 | L8: 580 | M8: =IF(J8="","",(L8/J8)-1) -> 0.16 | O8: =L8-N8 -> 580 | P8: 1 | R8: =PRODUCT(I8,P8) -> 20 | S8: =PRODUCT(O8,R8) -> 11600 | T8: =PRODUCT(R8,(L8-J8)) -> 1600 | U8: 2021-01-01 | V8: =IF(U8="","",WORKDAY(U8-1,R8,Calendrier!K2:K7)) -> 2021-01-28 | AB8: =IF(U8="","",IF(V8<=V2,NETWORKDAYS(U8,V8,Calendrier!K2:K9),NETWORKDAYS(U8,V2,Calendrier!K2:K9))) -> 20 | AC8: =IF(AB8="","",R8-AB8) -> 0 | AD8: 20 | AE8: =PRODUCT(O8,AD8) -> 11600 | AF8: =PRODUCT(O8-K8,AD8) -> 1600
M9: =IF(J9="","",(L9/J9)-1) ->  | O9: =L9-N9 -> 0 | R9: =PRODUCT(I9,P9) -> 0 | S9: =PRODUCT(O9,R9) -> 0 | T9: =PRODUCT(R9,(L9-J9)) -> 0 | V9: =IF(U9="","",WORKDAY(U9-1,R9,Calendrier!K2:K7)) ->  | AB9: =IF(U9="","",IF(V9<=$V2,NETWORKDAYS(U9,V9,Calendrier!K3:K10),NETWORKDAYS(U9,$V2,Calendrier!K3:K10))) ->  | AC9: =IF(AB9="","",R9-AB9) ->  | AE9: =PRODUCT(O9,AD9) -> 0 | AF9: =PRODUCT(M9,AE9) -> 0
M10: =IF(J10="","",(L10/J10)-1) ->  | O10: 0 | R10: 0 | S10: =PRODUCT(O10,R10) -> 0 | T10: 0 | V10: =IF(U10="","",WORKDAY(U10-1,R10,Calendrier!K2:K7)) ->  | AB10: =IF(U10="","",IF(V10<=$V2,NETWORKDAYS(U10,V10,Calendrier!K4:K11),NETWORKDAYS(U10,$V2,Calendrier!K4:K11))) ->  | AE10: 0 | AF10: 0
O11: 0 | R11: 0 | S11: 0 | T11: 0 | V11: =IF(U11="","",WORKDAY(U11-1,R11,Calendrier!K2:K7)) ->  | AB11: =IF(U11="","",IF(V11<=$V2,NETWORKDAYS(U11,V11,Calendrier!K5:K12),NETWORKDAYS(U11,$V2,Calendrier!K5:K12))) ->  | AE11: 0 | AF11: 0
O12: 0 | R12: 0 | S12: 0 | T12: 0 | V12: =IF(U12="","",WORKDAY(U12-1,R12,Calendrier!K2:K7)) ->  | AB12: =IF(U12="","",IF(V12<=$V2,NETWORKDAYS(U12,V12,Calendrier!K6:K13),NETWORKDAYS(U12,$V2,Calendrier!K6:K13))) ->  | AE12: 0 | AF12: 0
O13: 0 | R13: 0 | S13: 0 | T13: 0 | V13: =IF(U13="","",WORKDAY(U13-1,R13,Calendrier!K2:K7)) ->  | AB13: =IF(U13="","",IF(V13<=$V2,NETWORKDAYS(U13,V13,Calendrier!K7:K14),NETWORKDAYS(U13,$V2,Calendrier!K7:K14))) ->  | AE13: 0 | AF13: 0
O14: 0 | R14: 0 | S14: 0 | T14: 0 | V14: =IF(U14="","",WORKDAY(U14-1,R14,Calendrier!K2:K7)) ->  | AB14: =IF(U14="","",IF(V14<=$V2,NETWORKDAYS(U14,V14,Calendrier!K8:K15),NETWORKDAYS(U14,$V2,Calendrier!K8:K15))) ->  | AE14: 0 | AF14: 0
O15: 0 | R15: =PRODUCT(I15,P15) -> 0 | S15: 0 | T15: 0 | V15: =IF(U15="","",WORKDAY(U15-1,R15,Calendrier!K2:K7)) ->  | AB15: =IF(U15="","",IF(V15<=$V2,NETWORKDAYS(U15,V15,Calendrier!K9:K16),NETWORKDAYS(U15,$V2,Calendrier!K9:K16))) ->  | AE15: 0 | AF15: 0
O16: 0 | R16: 0 | S16: 0 | T16: 0 | V16: =IF(U16="","",WORKDAY(U16-1,R16,Calendrier!K2:K7)) ->  | AB16: =IF(U16="","",IF(V16<=$V2,NETWORKDAYS(U16,V16,Calendrier!K10:K17),NETWORKDAYS(U16,$V2,Calendrier!K10:K17))) ->  | AE16: 0 | AF16: 0
O17: 0 | R17: 0 | S17: 0 | T17: 0 | V17: =IF(U17="","",WORKDAY(U17-1,R17,Calendrier!K2:K7)) ->  | AB17: =IF(U17="","",IF(V17<=$V2,NETWORKDAYS(U17,V17,Calendrier!K11:K18),NETWORKDAYS(U17,$V2,Calendrier!K11:K18))) ->  | AE17: 0 | AF17: 0
O18: 0 | R18: 0 | S18: 0 | T18: 0 | V18: =IF(U18="","",WORKDAY(U18-1,R18,Calendrier!K2:K7)) ->  | AB18: =IF(U18="","",IF(V18<=$V2,NETWORKDAYS(U18,V18,Calendrier!K12:K19),NETWORKDAYS(U18,$V2,Calendrier!K12:K19))) ->  | AE18: 0 | AF18: 0
O19: 0 | R19: 0 | S19: 0 | T19: 0 | V19: =IF(U19="","",WORKDAY(U19-1,R19,Calendrier!K2:K7)) ->  | AB19: =IF(U19="","",IF(V19<=$V2,NETWORKDAYS(U19,V19,Calendrier!K13:K20),NETWORKDAYS(U19,$V2,Calendrier!K13:K20))) ->  | AE19: 0 | AF19: 0
O20: 0 | R20: 0 | S20: 0 | T20: 0 | V20: =IF(U20="","",WORKDAY(U20-1,R20,Calendrier!K2:K7)) ->  | AB20: =IF(U20="","",IF(V20<=$V2,NETWORKDAYS(U20,V20,Calendrier!K14:K21),NETWORKDAYS(U20,$V2,Calendrier!K14:K21))) ->  | AE20: 0 | AF20: 0
O21: 0 | R21: 0 | S21: 0 | T21: 0 | V21: =IF(U21="","",WORKDAY(U21-1,R21,Calendrier!K2:K7)) ->  | AB21: =IF(U21="","",IF(V21<=$V2,NETWORKDAYS(U21,V21,Calendrier!K15:K22),NETWORKDAYS(U21,$V2,Calendrier!K15:K22))) ->  | AE21: 0 | AF21: 0
O22: 0 | R22: 0 | S22: 0 | T22: 0 | V22: =IF(U22="","",WORKDAY(U22-1,R22,Calendrier!K2:K7)) ->  | AB22: =IF(U22="","",IF(V22<=$V2,NETWORKDAYS(U22,V22,Calendrier!K16:K23),NETWORKDAYS(U22,$V2,Calendrier!K16:K23))) ->  | AE22: 0 | AF22: 0
O23: 0 | R23: 0 | S23: 0 | T23: 0 | V23: =IF(U23="","",WORKDAY(U23-1,R23,Calendrier!K2:K7)) ->  | AB23: =IF(U23="","",IF(V23<=$V2,NETWORKDAYS(U23,V23,Calendrier!K17:K24),NETWORKDAYS(U23,$V2,Calendrier!K17:K24))) ->  | AE23: 0 | AF23: 0
O24: 0 | R24: 0 | S24: 0 | T24: 0 | V24: =IF(U24="","",WORKDAY(U24-1,R24,Calendrier!K2:K7)) ->  | AB24: =IF(U24="","",IF(V24<=$V2,NETWORKDAYS(U24,V24,Calendrier!K18:K25),NETWORKDAYS(U24,$V2,Calendrier!K18:K25))) ->  | AE24: 0 | AF24: 0
O25: 0 | R25: 0 | S25: 0 | T25: 0 | V25: =IF(U25="","",WORKDAY(U25-1,R25,Calendrier!K2:K7)) ->  | AB25: =IF(U25="","",IF(V25<=$V2,NETWORKDAYS(U25,V25,Calendrier!K19:K26),NETWORKDAYS(U25,$V2,Calendrier!K19:K26))) ->  | AE25: 0 | AF25: 0
O26: 0 | R26: 0 | S26: 0 | T26: 0 | V26: =IF(U26="","",WORKDAY(U26-1,R26,Calendrier!K2:K7)) ->  | AB26: =IF(U26="","",IF(V26<=$V2,NETWORKDAYS(U26,V26,Calendrier!K20:K27),NETWORKDAYS(U26,$V2,Calendrier!K20:K27))) ->  | AE26: 0 | AF26: 0
S27: =SUM(S8:S26) -> 11600 | T27: =SUM(T8:T26) -> 1600 | AE27: =SUM(AE8:AE26) -> 11600 | AF27: =SUM(AF8:AF26) -> 1600
A31: Recrutement
A32: Nom | B32: Prénom | C32: Contact | F32: Apport WOF | I32: Préavis | J32: Salaire actuel | L32: Prétentions | M32: Salaire embauche | N32: % honoraires | O32: % WOF Oui | P32: % WOF Non | Q32: Démarrage | R32: Marge sur vente Sand | S32: Part WOF
F33: Non | M33: 45000 | N33: 0.1 | O33: 50 | P33: 20 | R33: =IF(F33="Oui",M33*N33/2,((M33*N33)/100)*(100-P33)) -> 3600 | S33: =IF(F33="Oui",((M33*N33)/100)*O33,((M33*N33)/100)*P33) -> 900
F34: Non | M34: 45000 | N34: 0.1 | O34: 50 | P34: 20 | R34: =IF(F34="Oui",M34*N34/2,((M34*N34)/100)*(100-P34)) -> 3600 | S34: =IF(F34="Oui",((M34*N34)/100)*O34,((M34*N34)/100)*P34) -> 900
R35: =IF(F35="Oui",M35*N35/2,((M35*N35)/100)*(100-P35)) -> 0 | S35: =IF(F35="Oui",((M35*N35)/100)*O35,((M35*N35)/100)*P35) -> 0
R36: =IF(F36="Oui",M36*N36/2,((M36*N36)/100)*(100-P36)) -> 0 | S36: =IF(F36="Oui",((M36*N36)/100)*O36,((M36*N36)/100)*P36) -> 0
P37: Total | R37: =SUM(R33:R36) -> 7200 | S37: =SUM(S33:S36) -> 1800

Sheet Fevrier 21
C1: =nomfeuille() ->  | AG1: 2021
G2: OK | H2: A faire | I2: En attente | L2: PORTAGE | N2: EIRL | O2: SARL | P2: SASU | Q2: Micro | S2: RCO | T2: Rclient | U2: Oui | V2: Non | W2: =Calendrier!B13 -> 2021-02-01 | X2: =Calendrier!H19 -> 2021-02-28
C5: Free-lance
C6: COLLABORATEUR | N6: NEGOCIATION | T6: CONTRAT | Y6: CLIENT | AC6: TIME SHEET
A7: Jours restants | C7: NOM | D7: Prénom | E7: CONTACT | F7: Statut | G7: ID | H7: RIB | I7: K-BIS | J7: ASS-PRO | K7: Nb de jours | L7: TJM achat | M7: TJM contrat | N7: TJM vente | O7: Marge | P7: Effort | Q7: TJM Apres effort | R7: Durée contrat | S7: Facture | T7: Nb Jours/contrat | U7: CA total | V7: Marge Contrat | W7: Debut de contrat | X7: Fin de contrat | Y7: CONTACT | Z7: FONCTION | AA7: TELEPHONE | AB7: MAIL | AC7: Time sheet | AD7: Nb jours prévus | AE7: Nb jours restants contrat | AF7: =_xlfn.CONCAT("Nb jours/ ",nomfeuille()," / Facturés") ->  | AG7: =_xlfn.CONCAT("Chiffre / ",nomfeuille()) ->  | AH7: =_xlfn.CONCAT("Chiffre Marge / ",nomfeuille()) -> 
A8: ='Janvier 21'!AC8 -> 0 | O8: =IF(L8="","",(N8/L8)-1) ->  | Q8: =N8-P8 -> 0 | T8: =PRODUCT(K8,R8) -> 0 | U8: =PRODUCT(Q8,T8) -> 0 | V8: =PRODUCT(T8,(N8-L8)) -> 0 | X8: =IF(W8="","",WORKDAY(W8-1,T8,Calendrier!K2:K7)) ->  | AD8: =IF(W8="","",IF(X8<=X2,NETWORKDAYS(W8,X8,Calendrier!K2:K9),NETWORKDAYS(W8,X2,Calendrier!K2:K9))) ->  | AE8: =IF(AD8="","",T8-AD8) ->  | AG8: =PRODUCT(Q8,AF8) -> 0 | AH8: =PRODUCT(O8,AG8) -> 0
O9: =IF(L9="","",(N9/L9)-1) ->  | Q9: =N9-P9 -> 0 | T9: =PRODUCT(K9,R9) -> 0 | U9: =PRODUCT(Q9,T9) -> 0 | V9: =PRODUCT(T9,(N9-L9)) -> 0 | X9: =IF(W9="","",WORKDAY(W9-1,T9,Calendrier!K2:K7)) ->  | AD9: =IF(W9="","",IF(X9<=$X2,NETWORKDAYS(W9,X9,Calendrier!K3:K10),NETWORKDAYS(W9,$X2,Calendrier!K3:K10))) ->  | AE9: =IF(AD9="","",T9-AD9) ->  | AG9: =PRODUCT(Q9,AF9) -> 0 | AH9: =PRODUCT(O9,AG9) -> 0
O10: =IF(L10="","",(N10/L10)-1) ->  | Q10: 0 | T10: 0 | U10: =PRODUCT(Q10,T10) -> 0 | V10: 0 | X10: =IF(W10="","",WORKDAY(W10-1,T10,Calendrier!K2:K7)) ->  | AD10: =IF(W10="","",IF(X10<=$X2,NETWORKDAYS(W10,X10,Calendrier!K4:K11),NETWORKDAYS(W10,$X2,Calendrier!K4:K11))) ->  | AG10: 0 | AH10: 0
Q11: 0 | T11: 0 | U11: 0 | V11: 0 | X11: =IF(W11="","",WORKDAY(W11-1,T11,Calendrier!K2:K7)) ->  | AD11: =IF(W11="","",IF(X11<=$X2,NETWORKDAYS(W11,X11,Calendrier!K5:K12),NETWORKDAYS(W11,$X2,Calendrier!K5:K12))) ->  | AG11: 0 | AH11: 0
Q12: 0 | T12: 0 | U12: 0 | V12: 0 | X12: =IF(W12="","",WORKDAY(W12-1,T12,Calendrier!K2:K7)) ->  | AD12: =IF(W12="","",IF(X12<=$X2,NETWORKDAYS(W12,X12,Calendrier!K6:K13),NETWORKDAYS(W12,$X2,Calendrier!K6:K13))) ->  | AG12: 0 | AH12: 0
Q13: 0 | T13: 0 | U13: 0 | V13: 0 | X13: =IF(W13="","",WORKDAY(W13-1,T13,Calendrier!K2:K7)) ->  | AD13: =IF(W13="","",IF(X13<=$X2,NETWORKDAYS(W13,X13,Calendrier!K7:K14),NETWORKDAYS(W13,$X2,Calendrier!K7:K14))) ->  | AG13: 0 | AH13: 0
Q14: 0 | T14: 0 | U14: 0 | V14: 0 | X14: =IF(W14="","",WORKDAY(W14-1,T14,Calendrier!K2:K7)) ->  | AD14: =IF(W14="","",IF(X14<=$X2,NETWORKDAYS(W14,X14,Calendrier!K8:K15),NETWORKDAYS(W14,$X2,Calendrier!K8:K15))) ->  | AG14: 0 | AH14: 0
Q15: 0 | T15: =PRODUCT(K15,R15) -> 0 | U15: 0 | V15: 0 | X15: =IF(W15="","",WORKDAY(W15-1,T15,Calendrier!K2:K7)) ->  | AD15: =IF(W15="","",IF(X15<=$X2,NETWORKDAYS(W15,X15,Calendrier!K9:K16),NETWORKDAYS(W15,$X2,Calendrier!K9:K16))) ->  | AG15: 0 | AH15: 0
Q16: 0 | T16: 0 | U16: 0 | V16: 0 | X16: =IF(W16="","",WORKDAY(W16-1,T16,Calendrier!K2:K7)) ->  | AD16: =IF(W16="","",IF(X16<=$X2,NETWORKDAYS(W16,X16,Calendrier!K10:K17),NETWORKDAYS(W16,$X2,Calendrier!K10:K17))) ->  | AG16: 0 | AH16: 0
Q17: 0 | T17: 0 | U17: 0 | V17: 0 | X17: =IF(W17="","",WORKDAY(W17-1,T17,Calendrier!K2:K7)) ->  | AD17: =IF(W17="","",IF(X17<=$X2,NETWORKDAYS(W17,X17,Calendrier!K11:K18),NETWORKDAYS(W17,$X2,Calendrier!K11:K18))) ->  | AG17: 0 | AH17: 0
Q18: 0 | T18: 0 | U18: 0 | V18: 0 | X18: =IF(W18="","",WORKDAY(W18-1,T18,Calendrier!K2:K7)) ->  | AD18: =IF(W18="","",IF(X18<=$X2,NETWORKDAYS(W18,X18,Calendrier!K12:K19),NETWORKDAYS(W18,$X2,Calendrier!K12:K19))) ->  | AG18: 0 | AH18: 0
Q19: 0 | T19: 0 | U19: 0 | V19: 0 | X19: =IF(W19="","",WORKDAY(W19-1,T19,Calendrier!K2:K7)) ->  | AD19: =IF(W19="","",IF(X19<=$X2,NETWORKDAYS(W19,X19,Calendrier!K13:K20),NETWORKDAYS(W19,$X2,Calendrier!K13:K20))) ->  | AG19: 0 | AH19: 0
Q20: 0 | T20: 0 | U20: 0 | V20: 0 | X20: =IF(W20="","",WORKDAY(W20-1,T20,Calendrier!K2:K7)) ->  | AD20: =IF(W20="","",IF(X20<=$X2,NETWORKDAYS(W20,X20,Calendrier!K14:K21),NETWORKDAYS(W20,$X2,Calendrier!K14:K21))) ->  | AG20: 0 | AH20: 0
Q21: 0 | T21: 0 | U21: 0 | V21: 0 | X21: =IF(W21="","",WORKDAY(W21-1,T21,Calendrier!K2:K7)) ->  | AD21: =IF(W21="","",IF(X21<=$X2,NETWORKDAYS(W21,X21,Calendrier!K15:K22),NETWORKDAYS(W21,$X2,Calendrier!K15:K22))) ->  | AG21: 0 | AH21: 0
Q22: 0 | T22: 0 | U22: 0 | V22: 0 | X22: =IF(W22="","",WORKDAY(W22-1,T22,Calendrier!K2:K7)) ->  | AD22: =IF(W22="","",IF(X22<=$X2,NETWORKDAYS(W22,X22,Calendrier!K16:K23),NETWORKDAYS(W22,$X2,Calendrier!K16:K23))) ->  | AG22: 0 | AH22: 0
Q23: 0 | T23: 0 | U23: 0 | V23: 0 | X23: =IF(W23="","",WORKDAY(W23-1,T23,Calendrier!K2:K7)) ->  | AD23: =IF(W23="","",IF(X23<=$X2,NETWORKDAYS(W23,X23,Calendrier!K17:K24),NETWORKDAYS(W23,$X2,Calendrier!K17:K24))) ->  | AG23: 0 | AH23: 0
Q24: 0 | T24: 0 | U24: 0 | V24: 0 | X24: =IF(W24="","",WORKDAY(W24-1,T24,Calendrier!K2:K7)) ->  | AD24: =IF(W24="","",IF(X24<=$X2,NETWORKDAYS(W24,X24,Calendrier!K18:K25),NETWORKDAYS(W24,$X2,Calendrier!K18:K25))) ->  | AG24: 0 | AH24: 0
Q25: 0 | T25: 0 | U25: 0 | V25: 0 | X25: =IF(W25="","",WORKDAY(W25-1,T25,Calendrier!K2:K7)) ->  | AD25: =IF(W25="","",IF(X25<=$X2,NETWORKDAYS(W25,X25,Calendrier!K19:K26),NETWORKDAYS(W25,$X2,Calendrier!K19:K26))) ->  | AG25: 0 | AH25: 0
Q26: 0 | T26: 0 | U26: 0 | V26: 0 | X26: =IF(W26="","",WORKDAY(W26-1,T26,Calendrier!K2:K7)) ->  | AD26: =IF(W26="","",IF(X26<=$X2,NETWORKDAYS(W26,X26,Calendrier!K20:K27),NETWORKDAYS(W26,$X2,Calendrier!K20:K27))) ->  | AG26: 0 | AH26: 0
U27: =SUM(U8:U26) -> 0 | V27: =SUM(V8:V26) -> 0 | AG27: =SUM(AG8:AG26) -> 0 | AH27: =SUM(AH8:AH26) -> 0
C31: Recrutement
C32: Nom | D32: Prénom | E32: Contact | H32: Apport WOF | K32: Préavis | L32: Salaire actuel | N32: Prétentions | O32: Salaire embauche | P32: % honoraires | Q32: % WOF Oui | R32: % WOF Non | S32: Démarrage | T32: Marge sur vente Sand | U32: Part WOF
H33: Non | P33: 0.1 | Q33: 50 | R33: 20 | T33: =IF(H33="Oui",O33*P33/2,((O33*P33)/100)*(100-R33)) -> 0 | U33: =IF(H33="Oui",((O33*P33)/100)*Q33,((O33*P33)/100)*R33) -> 0
T34: =IF(H34="Oui",O34*P34/2,((O34*P34)/100)*(100-R34)) -> 0 | U34: =IF(H34="Oui",((O34*P34)/100)*Q34,((O34*P34)/100)*R34) -> 0
T35: =IF(H35="Oui",O35*P35/2,((O35*P35)/100)*(100-R35)) -> 0 | U35: =IF(H35="Oui",((O35*P35)/100)*Q35,((O35*P35)/100)*R35) -> 0
T36: =IF(H36="Oui",O36*P36/2,((O36*P36)/100)*(100-R36)) -> 0 | U36: =IF(H36="Oui",((O36*P36)/100)*Q36,((O36*P36)/100)*R36) -> 0
R37: Total | T37: =SUM(T33:T36) -> 0 | U37: =SUM(U33:U36) -> 0

Sheet Mars 21
A1: =nomfeuille() ->  | AE1: 2021
E2: OK | F2: A faire | G2: En attente | J2: PORTAGE | L2: EIRL | M2: SARL | N2: SASU | O2: Micro | Q2: RCO | R2: Rclient | S2: Oui | T2: Non | U2: =Calendrier!B22 -> 2021-03-01 | V2: =Calendrier!D31 -> 2021-03-31
A5: Free-lance
A6: COLLABORATEUR | L6: NEGOCIATION | R6: CONTRAT | W6: CLIENT | AA6: TIME SHEET
A7: NOM | B7: Prénom | C7: CONTACT | D7: Statut | E7: ID | F7: RIB | G7: K-BIS | H7: ASS-PRO | I7: Nb de jours | J7: TJM achat | K7: TJM contrat | L7: TJM vente | M7: Marge | N7: Effort | O7: TJM Apres effort | P7: Durée contrat | Q7: Facture | R7: Nb Jours/contrat | S7: CA total | T7: Marge Contrat | U7: Debut de contrat | V7: Fin de contrat | W7: CONTACT | X7: FONCTION | Y7: TELEPHONE | Z7: MAIL | AA7: Time sheet | AB7: Nb jours prévus | AC7: Nb jours restants contrat | AD7: =_xlfn.CONCAT("Nb jours/ ",nomfeuille()," / Facturés") ->  | AE7: =_xlfn.CONCAT("Chiffre / ",nomfeuille()) ->  | AF7: =_xlfn.CONCAT("Chiffre Marge / ",nomfeuille()) -> 
M8: =IF(J8="","",(L8/J8)-1) ->  | O8: =L8-N8 -> 0 | R8: =PRODUCT(I8,P8) -> 0 | S8: =PRODUCT(O8,R8) -> 0 | T8: =PRODUCT(R8,(L8-J8)) -> 0 | V8: =IF(U8="","",WORKDAY(U8-1,R8,Calendrier!K2:K7)) ->  | AB8: =IF(U8="","",IF(V8<=V2,NETWORKDAYS(U8,V8,Calendrier!K2:K9),NETWORKDAYS(U8,V2,Calendrier!K2:K9))) ->  | AC8: =IF(AB8="","",R8-AB8) ->  | AE8: =PRODUCT(O8,AD8) -> 0 | AF8: =PRODUCT(M8,AE8) -> 0
M9: =IF(J9="","",(L9/J9)-1) ->  | O9: =L9-N9 -> 0 | R9: =PRODUCT(I9,P9) -> 0 | S9: =PRODUCT(O9,R9) -> 0 | T9: =PRODUCT(R9,(L9-J9)) -> 0 | V9: =IF(U9="","",WORKDAY(U9-1,R9,Calendrier!K2:K7)) ->  | AB9: =IF(U9="","",IF(V9<=$V2,NETWORKDAYS(U9,V9,Calendrier!K3:K10),NETWORKDAYS(U9,$V2,Calendrier!K3:K10))) ->  | AC9: =IF(AB9="","",R9-AB9) ->  | AE9: =PRODUCT(O9,AD9) -> 0 | AF9: =PRODUCT(M9,AE9) -> 0
M10: =IF(J10="","",(L10/J10)-1) ->  | O10: 0 | R10: 0 | S10: =PRODUCT(O10,R10) -> 0 | T10: 0 | V10: =IF(U10="","",WORKDAY(U10-1,R10,Calendrier!K2:K7)) ->  | AB10: =IF(U10="","",IF(V10<=$V2,NETWORKDAYS(U10,V10,Calendrier!K4:K11),NETWORKDAYS(U10,$V2,Calendrier!K4:K11))) ->  | AE10: 0 | AF10: 0
O11: 0 | R11: 0 | S11: 0 | T11: 0 | V11: =IF(U11="","",WORKDAY(U11-1,R11,Calendrier!K2:K7)) ->  | AB11: =IF(U11="","",IF(V11<=$V2,NETWORKDAYS(U11,V11,Calendrier!K5:K12),NETWORKDAYS(U11,$V2,Calendrier!K5:K12))) ->  | AE11: 0 | AF11: 0
O12: 0 | R12: 0 | S12: 0 | T12: 0 | V12: =IF(U12="","",WORKDAY(U12-1,R12,Calendrier!K2:K7)) ->  | AB12: =IF(U12="","",IF(V12<=$V2,NETWORKDAYS(U12,V12,Calendrier!K6:K13),NETWORKDAYS(U12,$V2,Calendrier!K6:K13))) ->  | AE12: 0 | AF12: 0
O13: 0 | R13: 0 | S13: 0 | T13: 0 | V13: =IF(U13="","",WORKDAY(U13-1,R13,Calendrier!K2:K7)) ->  | AB13: =IF(U13="","",IF(V13<=$V2,NETWORKDAYS(U13,V13,Calendrier!K7:K14),NETWORKDAYS(U13,$V2,Calendrier!K7:K14))) ->  | AE13: 0 | AF13: 0
O14: 0 | R14: 0 | S14: 0 | T14: 0 | V14: =IF(U14="","",WORKDAY(U14-1,R14,Calendrier!K2:K7)) ->  | AB14: =IF(U14="","",IF(V14<=$V2,NETWORKDAYS(U14,V14,Calendrier!K8:K15),NETWORKDAYS(U14,$V2,Calendrier!K8:K15))) ->  | AE14: 0 | AF14: 0
O15: 0 | R15: =PRODUCT(I15,P15) -> 0 | S15: 0 | T15: 0 | V15: =IF(U15="","",WORKDAY(U15-1,R15,Calendrier!K2:K7)) ->  | AB15: =IF(U15="","",IF(V15<=$V2,NETWORKDAYS(U15,V15,Calendrier!K9:K16),NETWORKDAYS(U15,$V2,Calendrier!K9:K16))) ->  | AE15: 0 | AF15: 0
O16: 0 | R16: 0 | S16: 0 | T16: 0 | V16: =IF(U16="","",WORKDAY(U16-1,R16,Calendrier!K2:K7)) ->  | AB16: =IF(U16="","",IF(V16<=$V2,NETWORKDAYS(U16,V16,Calendrier!K10:K17),NETWORKDAYS(U16,$V2,Calendrier!K10:K17))) ->  | AE16: 0 | AF16: 0
O17: 0 | R17: 0 | S17: 0 | T17: 0 | V17: =IF(U17="","",WORKDAY(U17-1,R17,Calendrier!K2:K7)) ->  | AB17: =IF(U17="","",IF(V17<=$V2,NETWORKDAYS(U17,V17,Calendrier!K11:K18),NETWORKDAYS(U17,$V2,Calendrier!K11:K18))) ->  | AE17: 0 | AF17: 0
O18: 0 | R18: 0 | S18: 0 | T18: 0 | V18: =IF(U18="","",WORKDAY(U18-1,R18,Calendrier!K2:K7)) ->  | AB18: =IF(U18="","",IF(V18<=$V2,NETWORKDAYS(U18,V18,Calendrier!K12:K19),NETWORKDAYS(U18,$V2,Calendrier!K12:K19))) ->  | AE18: 0 | AF18: 0
O19: 0 | R19: 0 | S19: 0 | T19: 0 | V19: =IF(U19="","",WORKDAY(U19-1,R19,Calendrier!K2:K7)) ->  | AB19: =IF(U19="","",IF(V19<=$V2,NETWORKDAYS(U19,V19,Calendrier!K13:K20),NETWORKDAYS(U19,$V2,Calendrier!K13:K20))) ->  | AE19: 0 | AF19: 0
O20: 0 | R20: 0 | S20: 0 | T20: 0 | V20: =IF(U20="","",WORKDAY(U20-1,R20,Calendrier!K2:K7)) ->  | AB20: =IF(U20="","",IF(V20<=$V2,NETWORKDAYS(U20,V20,Calendrier!K14:K21),NETWORKDAYS(U20,$V2,Calendrier!K14:K21))) ->  | AE20: 0 | AF20: 0
O21: 0 | R21: 0 | S21: 0 | T21: 0 | V21: =IF(U21="","",WORKDAY(U21-1,R21,Calendrier!K2:K7)) ->  | AB21: =IF(U21="","",IF(V21<=$V2,NETWORKDAYS(U21,V21,Calendrier!K15:K22),NETWORKDAYS(U21,$V2,Calendrier!K15:K22))) ->  | AE21: 0 | AF21: 0
O22: 0 | R22: 0 | S22: 0 | T22: 0 | V22: =IF(U22="","",WORKDAY(U22-1,R22,Calendrier!K2:K7)) ->  | AB22: =IF(U22="","",IF(V22<=$V2,NETWORKDAYS(U22,V22,Calendrier!K16:K23),NETWORKDAYS(U22,$V2,Calendrier!K16:K23))) ->  | AE22: 0 | AF22: 0
O23: 0 | R23: 0 | S23: 0 | T23: 0 | V23: =IF(U23="","",WORKDAY(U23-1,R23,Calendrier!K2:K7)) ->  | AB23: =IF(U23="","",IF(V23<=$V2,NETWORKDAYS(U23,V23,Calendrier!K17:K24),NETWORKDAYS(U23,$V2,Calendrier!K17:K24))) ->  | AE23: 0 | AF23: 0
O24: 0 | R24: 0 | S24: 0 | T24: 0 | V24: =IF(U24="","",WORKDAY(U24-1,R24,Calendrier!K2:K7)) ->  | AB24: =IF(U24="","",IF(V24<=$V2,NETWORKDAYS(U24,V24,Calendrier!K18:K25),NETWORKDAYS(U24,$V2,Calendrier!K18:K25))) ->  | AE24: 0 | AF24: 0
O25: 0 | R25: 0 | S25: 0 | T25: 0 | V25: =IF(U25="","",WORKDAY(U25-1,R25,Calendrier!K2:K7)) ->  | AB25: =IF(U25="","",IF(V25<=$V2,NETWORKDAYS(U25,V25,Calendrier!K19:K26),NETWORKDAYS(U25,$V2,Calendrier!K19:K26))) ->  | AE25: 0 | AF25: 0
O26: 0 | R26: 0 | S26: 0 | T26: 0 | V26: =IF(U26="","",WORKDAY(U26-1,R26,Calendrier!K2:K7)) ->  | AB26: =IF(U26="","",IF(V26<=$V2,NETWORKDAYS(U26,V26,Calendrier!K20:K27),NETWORKDAYS(U26,$V2,Calendrier!K20:K27))) ->  | AE26: 0 | AF26: 0
S27: =SUM(S8:S26) -> 0 | T27: =SUM(T8:T26) -> 0 | AE27: =SUM(AE8:AE26) -> 0 | AF27: =SUM(AF8:AF26) -> 0
A31: Recrutement
A32: Nom | B32: Prénom | C32: Contact | F32: Apport WOF | I32: Préavis | J32: Salaire actuel | L32: Prétentions | M32: Salaire embauche | N32: % honoraires | O32: % WOF Oui | P32: % WOF Non | Q32: Démarrage | R32: Marge sur vente Sand | S32: Part WOF
F33: Non | N33: 0.1 | O33: 50 | P33: 20 | R33: =IF(F33="Oui",M33*N33/2,((M33*N33)/100)*(100-P33)) -> 0 | S33: =IF(F33="Oui",((M33*N33)/100)*O33,((M33*N33)/100)*P33) -> 0
R34: =IF(F34="Oui",M34*N34/2,((M34*N34)/100)*(100-P34)) -> 0 | S34: =IF(F34="Oui",((M34*N34)/100)*O34,((M34*N34)/100)*P34) -> 0
R35: =IF(F35="Oui",M35*N35/2,((M35*N35)/100)*(100-P35)) -> 0 | S35: =IF(F35="Oui",((M35*N35)/100)*O35,((M35*N35)/100)*P35) -> 0
R36: =IF(F36="Oui",M36*N36/2,((M36*N36)/100)*(100-P36)) -> 0 | S36: =IF(F36="Oui",((M36*N36)/100)*O36,((M36*N36)/100)*P36) -> 0
P37: Total | R37: =SUM(R33:R36) -> 0 | S37: =SUM(S33:S36) -> 0

Sheet Avril 21
A1: =nomfeuille() ->  | AE1: 2021
E2: OK | F2: A faire | G2: En attente | J2: PORTAGE | L2: EIRL | M2: SARL | N2: SASU | O2: Micro | Q2: RCO | R2: Rclient | S2: Oui | T2: Non | U2: =Calendrier!E31 -> 2021-04-01 | V2: =Calendrier!F40 -> 2021-04-30
A5: Free-lance
A6: COLLABORATEUR | L6: NEGOCIATION | R6: CONTRAT | W6: CLIENT | AA6: TIME SHEET
A7: NOM | B7: Prénom | C7: CONTACT | D7: Statut | E7: ID | F7: RIB | G7: K-BIS | H7: ASS-PRO | I7: Nb de jours | J7: TJM achat | K7: TJM contrat | L7: TJM vente | M7: Marge | N7: Effort | O7: TJM Apres effort | P7: Durée contrat | Q7: Facture | R7: Nb Jours/contrat | S7: CA total | T7: Marge Contrat | U7: Debut de contrat | V7: Fin de contrat | W7: CONTACT | X7: FONCTION | Y7: TELEPHONE | Z7: MAIL | AA7: Time sheet | AB7: Nb jours prévus | AC7: Nb jours restants contrat | AD7: =_xlfn.CONCAT("Nb jours/ ",nomfeuille()," / Facturés") ->  | AE7: =_xlfn.CONCAT("Chiffre / ",nomfeuille()) ->  | AF7: =_xlfn.CONCAT("Chiffre Marge / ",nomfeuille()) -> 
M8: =IF(J8="","",(L8/J8)-1) ->  | O8: =L8-N8 -> 0 | R8: =PRODUCT(I8,P8) -> 0 | S8: =PRODUCT(O8,R8) -> 0 | T8: =PRODUCT(R8,(L8-J8)) -> 0 | V8: =IF(U8="","",WORKDAY(U8-1,R8,Calendrier!K2:K7)) ->  | AB8: =IF(U8="","",IF(V8<=V2,NETWORKDAYS(U8,V8,Calendrier!K2:K9),NETWORKDAYS(U8,V2,Calendrier!K2:K9))) ->  | AC8: =IF(AB8="","",R8-AB8) ->  | AE8: =PRODUCT(O8,AD8) -> 0 | AF8: =PRODUCT(M8,AE8) -> 0
M9: =IF(J9="","",(L9/J9)-1) ->  | O9: =L9-N9 -> 0 | R9: =PRODUCT(I9,P9) -> 0 | S9: =PRODUCT(O9,R9) -> 0 | T9: =PRODUCT(R9,(L9-J9)) -> 0 | V9: =IF(U9="","",WORKDAY(U9-1,R9,Calendrier!K2:K7)) ->  | AB9: =IF(U9="","",IF(V9<=$V2,NETWORKDAYS(U9,V9,Calendrier!K3:K10),NETWORKDAYS(U9,$V2,Calendrier!K3:K10))) ->  | AC9: =IF(AB9="","",R9-AB9) ->  | AE9: =PRODUCT(O9,AD9) -> 0 | AF9: =PRODUCT(M9,AE9) -> 0
M10: =IF(J10="","",(L10/J10)-1) ->  | O10: 0 | R10: 0 | S10: =PRODUCT(O10,R10) -> 0 | T10: 0 | V10: =IF(U10="","",WORKDAY(U10-1,R10,Calendrier!K2:K7)) ->  | AB10: =IF(U10="","",IF(V10<=$V2,NETWORKDAYS(U10,V10,Calendrier!K4:K11),NETWORKDAYS(U10,$V2,Calendrier!K4:K11))) ->  | AE10: 0 | AF10: 0
O11: 0 | R11: 0 | S11: 0 | T11: 0 | V11: =IF(U11="","",WORKDAY(U11-1,R11,Calendrier!K2:K7)) ->  | AB11: =IF(U11="","",IF(V11<=$V2,NETWORKDAYS(U11,V11,Calendrier!K5:K12),NETWORKDAYS(U11,$V2,Calendrier!K5:K12))) ->  | AE11: 0 | AF11: 0
O12: 0 | R12: 0 | S12: 0 | T12: 0 | V12: =IF(U12="","",WORKDAY(U12-1,R12,Calendrier!K2:K7)) ->  | AB12: =IF(U12="","",IF(V12<=$V2,NETWORKDAYS(U12,V12,Calendrier!K6:K13),NETWORKDAYS(U12,$V2,Calendrier!K6:K13))) ->  | AE12: 0 | AF12: 0
O13: 0 | R13: 0 | S13: 0 | T13: 0 | V13: =IF(U13="","",WORKDAY(U13-1,R13,Calendrier!K2:K7)) ->  | AB13: =IF(U13="","",IF(V13<=$V2,NETWORKDAYS(U13,V13,Calendrier!K7:K14),NETWORKDAYS(U13,$V2,Calendrier!K7:K14))) ->  | AE13: 0 | AF13: 0
O14: 0 | R14: 0 | S14: 0 | T14: 0 | V14: =IF(U14="","",WORKDAY(U14-1,R14,Calendrier!K2:K7)) ->  | AB14: =IF(U14="","",IF(V14<=$V2,NETWORKDAYS(U14,V14,Calendrier!K8:K15),NETWORKDAYS(U14,$V2,Calendrier!K8:K15))) ->  | AE14: 0 | AF14: 0
O15: 0 | R15: =PRODUCT(I15,P15) -> 0 | S15: 0 | T15: 0 | V15: =IF(U15="","",WORKDAY(U15-1,R15,Calendrier!K2:K7)) ->  | AB15: =IF(U15="","",IF(V15<=$V2,NETWORKDAYS(U15,V15,Calendrier!K9:K16),NETWORKDAYS(U15,$V2,Calendrier!K9:K16))) ->  | AE15: 0 | AF15: 0
O16: 0 | R16: 0 | S16: 0 | T16: 0 | V16: =IF(U16="","",WORKDAY(U16-1,R16,Calendrier!K2:K7)) ->  | AB16: =IF(U16="","",IF(V16<=$V2,NETWORKDAYS(U16,V16,Calendrier!K10:K17),NETWORKDAYS(U16,$V2,Calendrier!K10:K17))) ->  | AE16: 0 | AF16: 0
O17: 0 | R17: 0 | S17: 0 | T17: 0 | V17: =IF(U17="","",WORKDAY(U17-1,R17,Calendrier!K2:K7)) ->  | AB17: =IF(U17="","",IF(V17<=$V2,NETWORKDAYS(U17,V17,Calendrier!K11:K18),NETWORKDAYS(U17,$V2,Calendrier!K11:K18))) ->  | AE17: 0 | AF17: 0
O18: 0 | R18: 0 | S18: 0 | T18: 0 | V18: =IF(U18="","",WORKDAY(U18-1,R18,Calendrier!K2:K7)) ->  | AB18: =IF(U18="","",IF(V18<=$V2,NETWORKDAYS(U18,V18,Calendrier!K12:K19),NETWORKDAYS(U18,$V2,Calendrier!K12:K19))) ->  | AE18: 0 | AF18: 0
O19: 0 | R19: 0 | S19: 0 | T19: 0 | V19: =IF(U19="","",WORKDAY(U19-1,R19,Calendrier!K2:K7)) ->  | AB19: =IF(U19="","",IF(V19<=$V2,NETWORKDAYS(U19,V19,Calendrier!K13:K20),NETWORKDAYS(U19,$V2,Calendrier!K13:K20))) ->  | AE19: 0 | AF19: 0
O20: 0 | R20: 0 | S20: 0 | T20: 0 | V20: =IF(U20="","",WORKDAY(U20-1,R20,Calendrier!K2:K7)) ->  | AB20: =IF(U20="","",IF(V20<=$V2,NETWORKDAYS(U20,V20,Calendrier!K14:K21),NETWORKDAYS(U20,$V2,Calendrier!K14:K21))) ->  | AE20: 0 | AF20: 0
O21: 0 | R21: 0 | S21: 0 | T21: 0 | V21: =IF(U21="","",WORKDAY(U21-1,R21,Calendrier!K2:K7)) ->  | AB21: =IF(U21="","",IF(V21<=$V2,NETWORKDAYS(U21,V21,Calendrier!K15:K22),NETWORKDAYS(U21,$V2,Calendrier!K15:K22))) ->  | AE21: 0 | AF21: 0
O22: 0 | R22: 0 | S22: 0 | T22: 0 | V22: =IF(U22="","",WORKDAY(U22-1,R22,Calendrier!K2:K7)) ->  | AB22: =IF(U22="","",IF(V22<=$V2,NETWORKDAYS(U22,V22,Calendrier!K16:K23),NETWORKDAYS(U22,$V2,Calendrier!K16:K23))) ->  | AE22: 0 | AF22: 0
O23: 0 | R23: 0 | S23: 0 | T23: 0 | V23: =IF(U23="","",WORKDAY(U23-1,R23,Calendrier!K2:K7)) ->  | AB23: =IF(U23="","",IF(V23<=$V2,NETWORKDAYS(U23,V23,Calendrier!K17:K24),NETWORKDAYS(U23,$V2,Calendrier!K17:K24))) ->  | AE23: 0 | AF23: 0
O24: 0 | R24: 0 | S24: 0 | T24: 0 | V24: =IF(U24="","",WORKDAY(U24-1,R24,Calendrier!K2:K7)) ->  | AB24: =IF(U24="","",IF(V24<=$V2,NETWORKDAYS(U24,V24,Calendrier!K18:K25),NETWORKDAYS(U24,$V2,Calendrier!K18:K25))) ->  | AE24: 0 | AF24: 0
O25: 0 | R25: 0 | S25: 0 | T25: 0 | V25: =IF(U25="","",WORKDAY(U25-1,R25,Calendrier!K2:K7)) ->  | AB25: =IF(U25="","",IF(V25<=$V2,NETWORKDAYS(U25,V25,Calendrier!K19:K26),NETWORKDAYS(U25,$V2,Calendrier!K19:K26))) ->  | AE25: 0 | AF25: 0
O26: 0 | R26: 0 | S26: 0 | T26: 0 | V26: =IF(U26="","",WORKDAY(U26-1,R26,Calendrier!K2:K7)) ->  | AB26: =IF(U26="","",IF(V26<=$V2,NETWORKDAYS(U26,V26,Calendrier!K20:K27),NETWORKDAYS(U26,$V2,Calendrier!K20:K27))) ->  | AE26: 0 | AF26: 0
S27: =SUM(S8:S26) -> 0 | T27: =SUM(T8:T26) -> 0 | AE27: =SUM(AE8:AE26) -> 0 | AF27: =SUM(AF8:AF26) -> 0
A31: Recrutement
A32: Nom | B32: Prénom | C32: Contact | F32: Apport WOF | I32: Préavis | J32: Salaire actuel | L32: Prétentions | M32: Salaire embauche | N32: % honoraires | O32: % WOF Oui | P32: % WOF Non | Q32: Démarrage | R32: Marge sur vente Sand | S32: Part WOF
F33: Oui | N33: 0.1 | O33: 50 | P33: 20 | R33: =IF(F33="Oui",M33*N33/2,((M33*N33)/100)*(100-P33)) -> 0 | S33: =IF(F33="Oui",((M33*N33)/100)*O33,((M33*N33)/100)*P33) -> 0
R34: =IF(F34="Oui",M34*N34/2,((M34*N34)/100)*(100-P34)) -> 0 | S34: =IF(F34="Oui",((M34*N34)/100)*O34,((M34*N34)/100)*P34) -> 0
R35: =IF(F35="Oui",M35*N35/2,((M35*N35)/100)*(100-P35)) -> 0 | S35: =IF(F35="Oui",((M35*N35)/100)*O35,((M35*N35)/100)*P35) -> 0
R36: =IF(F36="Oui",M36*N36/2,((M36*N36)/100)*(100-P36)) -> 0 | S36: =IF(F36="Oui",((M36*N36)/100)*O36,((M36*N36)/100)*P36) -> 0
P37: Total | R37: =SUM(R33:R36) -> 0 | S37: =SUM(S33:S36) -> 0

Sheet Mai 21
A1: =nomfeuille() ->  | AE1: 2021
E2: OK | F2: A faire | G2: En attente | J2: PORTAGE | L2: EIRL | M2: SARL | N2: SASU | O2: Micro | Q2: RCO | R2: Rclient | S2: Oui | T2: Non | U2: =Calendrier!G40 -> 2021-05-01 | V2: =Calendrier!B51 -> 2021-05-31
A5: Free-lance
A6: COLLABORATEUR | L6: NEGOCIATION | R6: CONTRAT | W6: CLIENT | AA6: TIME SHEET
A7: NOM | B7: Prénom | C7: CONTACT | D7: Statut | E7: ID | F7: RIB | G7: K-BIS | H7: ASS-PRO | I7: Nb de jours | J7: TJM achat | K7: TJM contrat | L7: TJM vente | M7: Marge | N7: Effort | O7: TJM Apres effort | P7: Durée contrat | Q7: Facture | R7: Nb Jours/contrat | S7: CA total | T7: Marge Contrat | U7: Debut de contrat | V7: Fin de contrat | W7: CONTACT | X7: FONCTION | Y7: TELEPHONE | Z7: MAIL | AA7: Time sheet | AB7: Nb jours prévus | AC7: Nb jours restants contrat | AD7: =_xlfn.CONCAT("Nb jours/ ",nomfeuille()," / Facturés") ->  | AE7: =_xlfn.CONCAT("Chiffre / ",nomfeuille()) ->  | AF7: =_xlfn.CONCAT("Chiffre Marge / ",nomfeuille()) -> 
M8: =IF(J8="","",(L8/J8)-1) ->  | O8: =L8-N8 -> 0 | R8: =PRODUCT(I8,P8) -> 0 | S8: =PRODUCT(O8,R8) -> 0 | T8: =PRODUCT(R8,(L8-J8)) -> 0 | V8: =IF(U8="","",WORKDAY(U8-1,R8,Calendrier!K2:K7)) ->  | AB8: =IF(U8="","",IF(V8<=V2,NETWORKDAYS(U8,V8,Calendrier!K2:K9),NETWORKDAYS(U8,V2,Calendrier!K2:K9))) ->  | AC8: =IF(AB8="","",R8-AB8) ->  | AE8: =PRODUCT(O8,AD8) -> 0 | AF8: =PRODUCT(M8,AE8) -> 0
M9: =IF(J9="","",(L9/J9)-1) ->  | O9: =L9-N9 -> 0 | R9: =PRODUCT(I9,P9) -> 0 | S9: =PRODUCT(O9,R9) -> 0 | T9: =PRODUCT(R9,(L9-J9)) -> 0 | V9: =IF(U9="","",WORKDAY(U9-1,R9,Calendrier!K2:K7)) ->  | AB9: =IF(U9="","",IF(V9<=$V2,NETWORKDAYS(U9,V9,Calendrier!K3:K10),NETWORKDAYS(U9,$V2,Calendrier!K3:K10))) ->  | AC9: =IF(AB9="","",R9-AB9) ->  | AE9: =PRODUCT(O9,AD9) -> 0 | AF9: =PRODUCT(M9,AE9) -> 0
M10: =IF(J10="","",(L10/J10)-1) ->  | O10: 0 | R10: 0 | S10: =PRODUCT(O10,R10) -> 0 | T10: 0 | V10: =IF(U10="","",WORKDAY(U10-1,R10,Calendrier!K2:K7)) ->  | AB10: =IF(U10="","",IF(V10<=$V2,NETWORKDAYS(U10,V10,Calendrier!K4:K11),NETWORKDAYS(U10,$V2,Calendrier!K4:K11))) ->  | AE10: 0 | AF10: 0
O11: 0 | R11: 0 | S11: 0 | T11: 0 | V11: =IF(U11="","",WORKDAY(U11-1,R11,Calendrier!K2:K7)) ->  | AB11: =IF(U11="","",IF(V11<=$V2,NETWORKDAYS(U11,V11,Calendrier!K5:K12),NETWORKDAYS(U11,$V2,Calendrier!K5:K12))) ->  | AE11: 0 | AF11: 0
O12: 0 | R12: 0 | S12: 0 | T12: 0 | V12: =IF(U12="","",WORKDAY(U12-1,R12,Calendrier!K2:K7)) ->  | AB12: =IF(U12="","",IF(V12<=$V2,NETWORKDAYS(U12,V12,Calendrier!K6:K13),NETWORKDAYS(U12,$V2,Calendrier!K6:K13))) ->  | AE12: 0 | AF12: 0
O13: 0 | R13: 0 | S13: 0 | T13: 0 | V13: =IF(U13="","",WORKDAY(U13-1,R13,Calendrier!K2:K7)) ->  | AB13: =IF(U13="","",IF(V13<=$V2,NETWORKDAYS(U13,V13,Calendrier!K7:K14),NETWORKDAYS(U13,$V2,Calendrier!K7:K14))) ->  | AE13: 0 | AF13: 0
O14: 0 | R14: 0 | S14: 0 | T14: 0 | V14: =IF(U14="","",WORKDAY(U14-1,R14,Calendrier!K2:K7)) ->  | AB14: =IF(U14="","",IF(V14<=$V2,NETWORKDAYS(U14,V14,Calendrier!K8:K15),NETWORKDAYS(U14,$V2,Calendrier!K8:K15))) ->  | AE14: 0 | AF14: 0
O15: 0 | R15: =PRODUCT(I15,P15) -> 0 | S15: 0 | T15: 0 | V15: =IF(U15="","",WORKDAY(U15-1,R15,Calendrier!K2:K7)) ->  | AB15: =IF(U15="","",IF(V15<=$V2,NETWORKDAYS(U15,V15,Calendrier!K9:K16),NETWORKDAYS(U15,$V2,Calendrier!K9:K16))) ->  | AE15: 0 | AF15: 0
O16: 0 | R16: 0 | S16: 0 | T16: 0 | V16: =IF(U16="","",WORKDAY(U16-1,R16,Calendrier!K2:K7)) ->  | AB16: =IF(U16="","",IF(V16<=$V2,NETWORKDAYS(U16,V16,Calendrier!K10:K17),NETWORKDAYS(U16,$V2,Calendrier!K10:K17))) ->  | AE16: 0 | AF16: 0
O17: 0 | R17: 0 | S17: 0 | T17: 0 | V17: =IF(U17="","",WORKDAY(U17-1,R17,Calendrier!K2:K7)) ->  | AB17: =IF(U17="","",IF(V17<=$V2,NETWORKDAYS(U17,V17,Calendrier!K11:K18),NETWORKDAYS(U17,$V2,Calendrier!K11:K18))) ->  | AE17: 0 | AF17: 0
O18: 0 | R18: 0 | S18: 0 | T18: 0 | V18: =IF(U18="","",WORKDAY(U18-1,R18,Calendrier!K2:K7)) ->  | AB18: =IF(U18="","",IF(V18<=$V2,NETWORKDAYS(U18,V18,Calendrier!K12:K19),NETWORKDAYS(U18,$V2,Calendrier!K12:K19))) ->  | AE18: 0 | AF18: 0
O19: 0 | R19: 0 | S19: 0 | T19: 0 | V19: =IF(U19="","",WORKDAY(U19-1,R19,Calendrier!K2:K7)) ->  | AB19: =IF(U19="","",IF(V19<=$V2,NETWORKDAYS(U19,V19,Calendrier!K13:K20),NETWORKDAYS(U19,$V2,Calendrier!K13:K20))) ->  | AE19: 0 | AF19: 0
O20: 0 | R20: 0 | S20: 0 | T20: 0 | V20: =IF(U20="","",WORKDAY(U20-1,R20,Calendrier!K2:K7)) ->  | AB20: =IF(U20="","",IF(V20<=$V2,NETWORKDAYS(U20,V20,Calendrier!K14:K21),NETWORKDAYS(U20,$V2,Calendrier!K14:K21))) ->  | AE20: 0 | AF20: 0
O21: 0 | R21: 0 | S21: 0 | T21: 0 | V21: =IF(U21="","",WORKDAY(U21-1,R21,Calendrier!K2:K7)) ->  | AB21: =IF(U21="","",IF(V21<=$V2,NETWORKDAYS(U21,V21,Calendrier!K15:K22),NETWORKDAYS(U21,$V2,Calendrier!K15:K22))) ->  | AE21: 0 | AF21: 0
O22: 0 | R22: 0 | S22: 0 | T22: 0 | V22: =IF(U22="","",WORKDAY(U22-1,R22,Calendrier!K2:K7)) ->  | AB22: =IF(U22="","",IF(V22<=$V2,NETWORKDAYS(U22,V22,Calendrier!K16:K23),NETWORKDAYS(U22,$V2,Calendrier!K16:K23))) ->  | AE22: 0 | AF22: 0
O23: 0 | R23: 0 | S23: 0 | T23: 0 | V23: =IF(U23="","",WORKDAY(U23-1,R23,Calendrier!K2:K7)) ->  | AB23: =IF(U23="","",IF(V23<=$V2,NETWORKDAYS(U23,V23,Calendrier!K17:K24),NETWORKDAYS(U23,$V2,Calendrier!K17:K24))) ->  | AE23: 0 | AF23: 0
O24: 0 | R24: 0 | S24: 0 | T24: 0 | V24: =IF(U24="","",WORKDAY(U24-1,R24,Calendrier!K2:K7)) ->  | AB24: =IF(U24="","",IF(V24<=$V2,NETWORKDAYS(U24,V24,Calendrier!K18:K25),NETWORKDAYS(U24,$V2,Calendrier!K18:K25))) ->  | AE24: 0 | AF24: 0
O25: 0 | R25: 0 | S25: 0 | T25: 0 | V25: =IF(U25="","",WORKDAY(U25-1,R25,Calendrier!K2:K7)) ->  | AB25: =IF(U25="","",IF(V25<=$V2,NETWORKDAYS(U25,V25,Calendrier!K19:K26),NETWORKDAYS(U25,$V2,Calendrier!K19:K26))) ->  | AE25: 0 | AF25: 0
O26: 0 | R26: 0 | S26: 0 | T26: 0 | V26: =IF(U26="","",WORKDAY(U26-1,R26,Calendrier!K2:K7)) ->  | AB26: =IF(U26="","",IF(V26<=$V2,NETWORKDAYS(U26,V26,Calendrier!K20:K27),NETWORKDAYS(U26,$V2,Calendrier!K20:K27))) ->  | AE26: 0 | AF26: 0
S27: =SUM(S8:S26) -> 0 | T27: =SUM(T8:T26) -> 0 | AE27: =SUM(AE8:AE26) -> 0 | AF27: =SUM(AF8:AF26) -> 0
A31: Recrutement
A32: Nom | B32: Prénom | C32: Contact | F32: Apport WOF | I32: Préavis | J32: Salaire actuel | L32: Prétentions | M32: Salaire embauche | N32: % honoraires | O32: % WOF Oui | P32: % WOF Non | Q32: Démarrage | R32: Marge sur vente Sand | S32: Part WOF
F33: Non | N33: 0.1 | O33: 50 | P33: 20 | R33: =IF(F33="Oui",M33*N33/2,((M33*N33)/100)*(100-P33)) -> 0 | S33: =IF(F33="Oui",((M33*N33)/100)*O33,((M33*N33)/100)*P33) -> 0
R34: =IF(F34="Oui",M34*N34/2,((M34*N34)/100)*(100-P34)) -> 0 | S34: =IF(F34="Oui",((M34*N34)/100)*O34,((M34*N34)/100)*P34) -> 0
R35: =IF(F35="Oui",M35*N35/2,((M35*N35)/100)*(100-P35)) -> 0 | S35: =IF(F35="Oui",((M35*N35)/100)*O35,((M35*N35)/100)*P35) -> 0
R36: =IF(F36="Oui",M36*N36/2,((M36*N36)/100)*(100-P36)) -> 0 | S36: =IF(F36="Oui",((M36*N36)/100)*O36,((M36*N36)/100)*P36) -> 0
P37: Total | R37: =SUM(R33:R36) -> 0 | S37: =SUM(S33:S36) -> 0

Sheet Juin 21
A1: =nomfeuille() ->  | AE1: 2021
E2: OK | F2: A faire | G2: En attente | J2: PORTAGE | L2: EIRL | M2: SARL | N2: SASU | O2: Micro | Q2: RCO | R2: Rclient | S2: Oui | T2: Non | U2: =Calendrier!C51 -> 2021-06-01 | V2: =Calendrier!D60 -> 2021-06-30
A5: Free-lance
A6: COLLABORATEUR | L6: NEGOCIATION | R6: CONTRAT | W6: CLIENT | AA6: TIME SHEET
A7: NOM | B7: Prénom | C7: CONTACT | D7: Statut | E7: ID | F7: RIB | G7: K-BIS | H7: ASS-PRO | I7: Nb de jours | J7: TJM achat | K7: TJM contrat | L7: TJM vente | M7: Marge | N7: Effort | O7: TJM Apres effort | P7: Durée contrat | Q7: Facture | R7: Nb Jours/contrat | S7: CA total | T7: Marge Contrat | U7: Debut de contrat | V7: Fin de contrat | W7: CONTACT | X7: FONCTION | Y7: TELEPHONE | Z7: MAIL | AA7: Time sheet | AB7: Nb jours prévus | AC7: Nb jours restants contrat | AD7: =_xlfn.CONCAT("Nb jours/ ",nomfeuille()," / Facturés") ->  | AE7: =_xlfn.CONCAT("Chiffre / ",nomfeuille()) ->  | AF7: =_xlfn.CONCAT("Chiffre Marge / ",nomfeuille()) -> 
M8: =IF(J8="","",(L8/J8)-1) ->  | O8: =L8-N8 -> 0 | R8: =PRODUCT(I8,P8) -> 0 | S8: =PRODUCT(O8,R8) -> 0 | T8: =PRODUCT(R8,(L8-J8)) -> 0 | V8: =IF(U8="","",WORKDAY(U8-1,R8,Calendrier!K2:K7)) ->  | AB8: =IF(U8="","",IF(V8<=V2,NETWORKDAYS(U8,V8,Calendrier!K2:K9),NETWORKDAYS(U8,V2,Calendrier!K2:K9))) ->  | AC8: =IF(AB8="","",R8-AB8) ->  | AE8: =PRODUCT(O8,AD8) -> 0 | AF8: =PRODUCT(M8,AE8) -> 0
M9: =IF(J9="","",(L9/J9)-1) ->  | O9: =L9-N9 -> 0 | R9: =PRODUCT(I9,P9) -> 0 | S9: =PRODUCT(O9,R9) -> 0 | T9: =PRODUCT(R9,(L9-J9)) -> 0 | V9: =IF(U9="","",WORKDAY(U9-1,R9,Calendrier!K2:K7)) ->  | AB9: =IF(U9="","",IF(V9<=$V2,NETWORKDAYS(U9,V9,Calendrier!K3:K10),NETWORKDAYS(U9,$V2,Calendrier!K3:K10))) ->  | AC9: =IF(AB9="","",R9-AB9) ->  | AE9: =PRODUCT(O9,AD9) -> 0 | AF9: =PRODUCT(M9,AE9) -> 0
M10: =IF(J10="","",(L10/J10)-1) ->  | O10: 0 | R10: 0 | S10: =PRODUCT(O10,R10) -> 0 | T10: 0 | V10: =IF(U10="","",WORKDAY(U10-1,R10,Calendrier!K2:K7)) ->  | AB10: =IF(U10="","",IF(V10<=$V2,NETWORKDAYS(U10,V10,Calendrier!K4:K11),NETWORKDAYS(U10,$V2,Calendrier!K4:K11))) ->  | AE10: 0 | AF10: 0
O11: 0 | R11: 0 | S11: 0 | T11: 0 | V11: =IF(U11="","",WORKDAY(U11-1,R11,Calendrier!K2:K7)) ->  | AB11: =IF(U11="","",IF(V11<=$V2,NETWORKDAYS(U11,V11,Calendrier!K5:K12),NETWORKDAYS(U11,$V2,Calendrier!K5:K12))) ->  | AE11: 0 | AF11: 0
O12: 0 | R12: 0 | S12: 0 | T12: 0 | V12: =IF(U12="","",WORKDAY(U12-1,R12,Calendrier!K2:K7)) ->  | AB12: =IF(U12="","",IF(V12<=$V2,NETWORKDAYS(U12,V12,Calendrier!K6:K13),NETWORKDAYS(U12,$V2,Calendrier!K6:K13))) ->  | AE12: 0 | AF12: 0
O13: 0 | R13: 0 | S13: 0 | T13: 0 | V13: =IF(U13="","",WORKDAY(U13-1,R13,Calendrier!K2:K7)) ->  | AB13: =IF(U13="","",IF(V13<=$V2,NETWORKDAYS(U13,V13,Calendrier!K7:K14),NETWORKDAYS(U13,$V2,Calendrier!K7:K14))) ->  | AE13: 0 | AF13: 0
O14: 0 | R14: 0 | S14: 0 | T14: 0 | V14: =IF(U14="","",WORKDAY(U14-1,R14,Calendrier!K2:K7)) ->  | AB14: =IF(U14="","",IF(V14<=$V2,NETWORKDAYS(U14,V14,Calendrier!K8:K15),NETWORKDAYS(U14,$V2,Calendrier!K8:K15))) ->  | AE14: 0 | AF14: 0
O15: 0 | R15: =PRODUCT(I15,P15) -> 0 | S15: 0 | T15: 0 | V15: =IF(U15="","",WORKDAY(U15-1,R15,Calendrier!K2:K7)) ->  | AB15: =IF(U15="","",IF(V15<=$V2,NETWORKDAYS(U15,V15,Calendrier!K9:K16),NETWORKDAYS(U15,$V2,Calendrier!K9:K16))) ->  | AE15: 0 | AF15: 0
O16: 0 | R16: 0 | S16: 0 | T16: 0 | V16: =IF(U16="","",WORKDAY(U16-1,R16,Calendrier!K2:K7)) ->  | AB16: =IF(U16="","",IF(V16<=$V2,NETWORKDAYS(U16,V16,Calendrier!K10:K17),NETWORKDAYS(U16,$V2,Calendrier!K10:K17))) ->  | AE16: 0 | AF16: 0
O17: 0 | R17: 0 | S17: 0 | T17: 0 | V17: =IF(U17="","",WORKDAY(U17-1,R17,Calendrier!K2:K7)) ->  | AB17: =IF(U17="","",IF(V17<=$V2,NETWORKDAYS(U17,V17,Calendrier!K11:K18),NETWORKDAYS(U17,$V2,Calendrier!K11:K18))) ->  | AE17: 0 | AF17: 0
O18: 0 | R18: 0 | S18: 0 | T18: 0 | V18: =IF(U18="","",WORKDAY(U18-1,R18,Calendrier!K2:K7)) ->  | AB18: =IF(U18="","",IF(V18<=$V2,NETWORKDAYS(U18,V18,Calendrier!K12:K19),NETWORKDAYS(U18,$V2,Calendrier!K12:K19))) ->  | AE18: 0 | AF18: 0
O19: 0 | R19: 0 | S19: 0 | T19: 0 | V19: =IF(U19="","",WORKDAY(U19-1,R19,Calendrier!K2:K7)) ->  | AB19: =IF(U19="","",IF(V19<=$V2,NETWORKDAYS(U19,V19,Calendrier!K13:K20),NETWORKDAYS(U19,$V2,Calendrier!K13:K20))) ->  | AE19: 0 | AF19: 0
O20: 0 | R20: 0 | S20: 0 | T20: 0 | V20: =IF(U20="","",WORKDAY(U20-1,R20,Calendrier!K2:K7)) ->  | AB20: =IF(U20="","",IF(V20<=$V2,NETWORKDAYS(U20,V20,Calendrier!K14:K21),NETWORKDAYS(U20,$V2,Calendrier!K14:K21))) ->  | AE20: 0 | AF20: 0
O21: 0 | R21: 0 | S21: 0 | T21: 0 | V21: =IF(U21="","",WORKDAY(U21-1,R21,Calendrier!K2:K7)) ->  | AB21: =IF(U21="","",IF(V21<=$V2,NETWORKDAYS(U21,V21,Calendrier!K15:K22),NETWORKDAYS(U21,$V2,Calendrier!K15:K22))) ->  | AE21: 0 | AF21: 0
O22: 0 | R22: 0 | S22: 0 | T22: 0 | V22: =IF(U22="","",WORKDAY(U22-1,R22,Calendrier!K2:K7)) ->  | AB22: =IF(U22="","",IF(V22<=$V2,NETWORKDAYS(U22,V22,Calendrier!K16:K23),NETWORKDAYS(U22,$V2,Calendrier!K16:K23))) ->  | AE22: 0 | AF22: 0
O23: 0 | R23: 0 | S23: 0 | T23: 0 | V23: =IF(U23="","",WORKDAY(U23-1,R23,Calendrier!K2:K7)) ->  | AB23: =IF(U23="","",IF(V23<=$V2,NETWORKDAYS(U23,V23,Calendrier!K17:K24),NETWORKDAYS(U23,$V2,Calendrier!K17:K24))) ->  | AE23: 0 | AF23: 0
O24: 0 | R24: 0 | S24: 0 | T24: 0 | V24: =IF(U24="","",WORKDAY(U24-1,R24,Calendrier!K2:K7)) ->  | AB24: =IF(U24="","",IF(V24<=$V2,NETWORKDAYS(U24,V24,Calendrier!K18:K25),NETWORKDAYS(U24,$V2,Calendrier!K18:K25))) ->  | AE24: 0 | AF24: 0
O25: 0 | R25: 0 | S25: 0 | T25: 0 | V25: =IF(U25="","",WORKDAY(U25-1,R25,Calendrier!K2:K7)) ->  | AB25: =IF(U25="","",IF(V25<=$V2,NETWORKDAYS(U25,V25,Calendrier!K19:K26),NETWORKDAYS(U25,$V2,Calendrier!K19:K26))) ->  | AE25: 0 | AF25: 0
O26: 0 | R26: 0 | S26: 0 | T26: 0 | V26: =IF(U26="","",WORKDAY(U26-1,R26,Calendrier!K2:K7)) ->  | AB26: =IF(U26="","",IF(V26<=$V2,NETWORKDAYS(U26,V26,Calendrier!K20:K27),NETWORKDAYS(U26,$V2,Calendrier!K20:K27))) ->  | AE26: 0 | AF26: 0
S27: =SUM(S8:S26) -> 0 | T27: =SUM(T8:T26) -> 0 | AE27: =SUM(AE8:AE26) -> 0 | AF27: =SUM(AF8:AF26) -> 0
A31: Recrutement
A32: Nom | B32: Prénom | C32: Contact | F32: Apport WOF | I32: Préavis | J32: Salaire actuel | L32: Prétentions | M32: Salaire embauche | N32: % honoraires | O32: % WOF Oui | P32: % WOF Non | Q32: Démarrage | R32: Marge sur vente Sand | S32: Part WOF
F33: Non | N33: 0.1 | O33: 50 | P33: 20 | R33: =IF(F33="Oui",M33*N33/2,((M33*N33)/100)*(100-P33)) -> 0 | S33: =IF(F33="Oui",((M33*N33)/100)*O33,((M33*N33)/100)*P33) -> 0
R34: =IF(F34="Oui",M34*N34/2,((M34*N34)/100)*(100-P34)) -> 0 | S34: =IF(F34="Oui",((M34*N34)/100)*O34,((M34*N34)/100)*P34) -> 0
R35: =IF(F35="Oui",M35*N35/2,((M35*N35)/100)*(100-P35)) -> 0 | S35: =IF(F35="Oui",((M35*N35)/100)*O35,((M35*N35)/100)*P35) -> 0
R36: =IF(F36="Oui",M36*N36/2,((M36*N36)/100)*(100-P36)) -> 0 | S36: =IF(F36="Oui",((M36*N36)/100)*O36,((M36*N36)/100)*P36) -> 0
P37: Total | R37: =SUM(R33:R36) -> 0 | S37: =SUM(S33:S36) -> 0

Sheet Juillet 21
A1: =nomfeuille() ->  | AE1: 2021
E2: OK | F2: A faire | G2: En attente | J2: PORTAGE | L2: EIRL | M2: SARL | N2: SASU | O2: Micro | Q2: RCO | R2: Rclient | S2: Oui | T2: Non | U2: =Calendrier!E60 -> 2021-07-01 | V2: =Calendrier!G69 -> 2021-07-31
A5: Free-lance
A6: COLLABORATEUR | L6: NEGOCIATION | R6: CONTRAT | W6: CLIENT | AA6: TIME SHEET
A7: NOM | B7: Prénom | C7: CONTACT | D7: Statut | E7: ID | F7: RIB | G7: K-BIS | H7: ASS-PRO | I7: Nb de jours | J7: TJM achat | K7: TJM contrat | L7: TJM vente | M7: Marge | N7: Effort | O7: TJM Apres effort | P7: Durée contrat | Q7: Facture | R7: Nb Jours/contrat | S7: CA total | T7: Marge Contrat | U7: Debut de contrat | V7: Fin de contrat | W7: CONTACT | X7: FONCTION | Y7: TELEPHONE | Z7: MAIL | AA7: Time sheet | AB7: Nb jours prévus | AC7: Nb jours restants contrat | AD7: =_xlfn.CONCAT("Nb jours/ ",nomfeuille()," / Facturés") ->  | AE7: =_xlfn.CONCAT("Chiffre / ",nomfeuille()) ->  | AF7: =_xlfn.CONCAT("Chiffre Marge / ",nomfeuille()) -> 
M8: =IF(J8="","",(L8/J8)-1) ->  | O8: =L8-N8 -> 0 | R8: =PRODUCT(I8,P8) -> 0 | S8: =PRODUCT(O8,R8) -> 0 | T8: =PRODUCT(R8,(L8-J8)) -> 0 | V8: =IF(U8="","",WORKDAY(U8-1,R8,Calendrier!K2:K7)) ->  | AB8: =IF(U8="","",IF(V8<=V2,NETWORKDAYS(U8,V8,Calendrier!K2:K9),NETWORKDAYS(U8,V2,Calendrier!K2:K9))) ->  | AC8: =IF(AB8="","",R8-AB8) ->  | AE8: =PRODUCT(O8,AD8) -> 0 | AF8: =PRODUCT(M8,AE8) -> 0
M9: =IF(J9="","",(L9/J9)-1) ->  | O9: =L9-N9 -> 0 | R9: =PRODUCT(I9,P9) -> 0 | S9: =PRODUCT(O9,R9) -> 0 | T9: =PRODUCT(R9,(L9-J9)) -> 0 | V9: =IF(U9="","",WORKDAY(U9-1,R9,Calendrier!K2:K7)) ->  | AB9: =IF(U9="","",IF(V9<=$V2,NETWORKDAYS(U9,V9,Calendrier!K3:K10),NETWORKDAYS(U9,$V2,Calendrier!K3:K10))) ->  | AC9: =IF(AB9="","",R9-AB9) ->  | AE9: =PRODUCT(O9,AD9) -> 0 | AF9: =PRODUCT(M9,AE9) -> 0
M10: =IF(J10="","",(L10/J10)-1) ->  | O10: 0 | R10: 0 | S10: =PRODUCT(O10,R10) -> 0 | T10: 0 | V10: =IF(U10="","",WORKDAY(U10-1,R10,Calendrier!K2:K7)) ->  | AB10: =IF(U10="","",IF(V10<=$V2,NETWORKDAYS(U10,V10,Calendrier!K4:K11),NETWORKDAYS(U10,$V2,Calendrier!K4:K11))) ->  | AE10: 0 | AF10: 0
O11: 0 | R11: 0 | S11: 0 | T11: 0 | V11: =IF(U11="","",WORKDAY(U11-1,R11,Calendrier!K2:K7)) ->  | AB11: =IF(U11="","",IF(V11<=$V2,NETWORKDAYS(U11,V11,Calendrier!K5:K12),NETWORKDAYS(U11,$V2,Calendrier!K5:K12))) ->  | AE11: 0 | AF11: 0
O12: 0 | R12: 0 | S12: 0 | T12: 0 | V12: =IF(U12="","",WORKDAY(U12-1,R12,Calendrier!K2:K7)) ->  | AB12: =IF(U12="","",IF(V12<=$V2,NETWORKDAYS(U12,V12,Calendrier!K6:K13),NETWORKDAYS(U12,$V2,Calendrier!K6:K13))) ->  | AE12: 0 | AF12: 0
O13: 0 | R13: 0 | S13: 0 | T13: 0 | V13: =IF(U13="","",WORKDAY(U13-1,R13,Calendrier!K2:K7)) ->  | AB13: =IF(U13="","",IF(V13<=$V2,NETWORKDAYS(U13,V13,Calendrier!K7:K14),NETWORKDAYS(U13,$V2,Calendrier!K7:K14))) ->  | AE13: 0 | AF13: 0
O14: 0 | R14: 0 | S14: 0 | T14: 0 | V14: =IF(U14="","",WORKDAY(U14-1,R14,Calendrier!K2:K7)) ->  | AB14: =IF(U14="","",IF(V14<=$V2,NETWORKDAYS(U14,V14,Calendrier!K8:K15),NETWORKDAYS(U14,$V2,Calendrier!K8:K15))) ->  | AE14: 0 | AF14: 0
O15: 0 | R15: =PRODUCT(I15,P15) -> 0 | S15: 0 | T15: 0 | V15: =IF(U15="","",WORKDAY(U15-1,R15,Calendrier!K2:K7)) ->  | AB15: =IF(U15="","",IF(V15<=$V2,NETWORKDAYS(U15,V15,Calendrier!K9:K16),NETWORKDAYS(U15,$V2,Calendrier!K9:K16))) ->  | AE15: 0 | AF15: 0
O16: 0 | R16: 0 | S16: 0 | T16: 0 | V16: =IF(U16="","",WORKDAY(U16-1,R16,Calendrier!K2:K7)) ->  | AB16: =IF(U16="","",IF(V16<=$V2,NETWORKDAYS(U16,V16,Calendrier!K10:K17),NETWORKDAYS(U16,$V2,Calendrier!K10:K17))) ->  | AE16: 0 | AF16: 0
O17: 0 | R17: 0 | S17: 0 | T17: 0 | V17: =IF(U17="","",WORKDAY(U17-1,R17,Calendrier!K2:K7)) ->  | AB17: =IF(U17="","",IF(V17<=$V2,NETWORKDAYS(U17,V17,Calendrier!K11:K18),NETWORKDAYS(U17,$V2,Calendrier!K11:K18))) ->  | AE17: 0 | AF17: 0
O18: 0 | R18: 0 | S18: 0 | T18: 0 | V18: =IF(U18="","",WORKDAY(U18-1,R18,Calendrier!K2:K7)) ->  | AB18: =IF(U18="","",IF(V18<=$V2,NETWORKDAYS(U18,V18,Calendrier!K12:K19),NETWORKDAYS(U18,$V2,Calendrier!K12:K19))) ->  | AE18: 0 | AF18: 0
O19: 0 | R19: 0 | S19: 0 | T19: 0 | V19: =IF(U19="","",WORKDAY(U19-1,R19,Calendrier!K2:K7)) ->  | AB19: =IF(U19="","",IF(V19<=$V2,NETWORKDAYS(U19,V19,Calendrier!K13:K20),NETWORKDAYS(U19,$V2,Calendrier!K13:K20))) ->  | AE19: 0 | AF19: 0
O20: 0 | R20: 0 | S20: 0 | T20: 0 | V20: =IF(U20="","",WORKDAY(U20-1,R20,Calendrier!K2:K7)) ->  | AB20: =IF(U20="","",IF(V20<=$V2,NETWORKDAYS(U20,V20,Calendrier!K14:K21),NETWORKDAYS(U20,$V2,Calendrier!K14:K21))) ->  | AE20: 0 | AF20: 0
O21: 0 | R21: 0 | S21: 0 | T21: 0 | V21: =IF(U21="","",WORKDAY(U21-1,R21,Calendrier!K2:K7)) ->  | AB21: =IF(U21="","",IF(V21<=$V2,NETWORKDAYS(U21,V21,Calendrier!K15:K22),NETWORKDAYS(U21,$V2,Calendrier!K15:K22))) ->  | AE21: 0 | AF21: 0
O22: 0 | R22: 0 | S22: 0 | T22: 0 | V22: =IF(U22="","",WORKDAY(U22-1,R22,Calendrier!K2:K7)) ->  | AB22: =IF(U22="","",IF(V22<=$V2,NETWORKDAYS(U22,V22,Calendrier!K16:K23),NETWORKDAYS(U22,$V2,Calendrier!K16:K23))) ->  | AE22: 0 | AF22: 0
O23: 0 | R23: 0 | S23: 0 | T23: 0 | V23: =IF(U23="","",WORKDAY(U23-1,R23,Calendrier!K2:K7)) ->  | AB23: =IF(U23="","",IF(V23<=$V2,NETWORKDAYS(U23,V23,Calendrier!K17:K24),NETWORKDAYS(U23,$V2,Calendrier!K17:K24))) ->  | AE23: 0 | AF23: 0
O24: 0 | R24: 0 | S24: 0 | T24: 0 | V24: =IF(U24="","",WORKDAY(U24-1,R24,Calendrier!K2:K7)) ->  | AB24: =IF(U24="","",IF(V24<=$V2,NETWORKDAYS(U24,V24,Calendrier!K18:K25),NETWORKDAYS(U24,$V2,Calendrier!K18:K25))) ->  | AE24: 0 | AF24: 0
O25: 0 | R25: 0 | S25: 0 | T25: 0 | V25: =IF(U25="","",WORKDAY(U25-1,R25,Calendrier!K2:K7)) ->  | AB25: =IF(U25="","",IF(V25<=$V2,NETWORKDAYS(U25,V25,Calendrier!K19:K26),NETWORKDAYS(U25,$V2,Calendrier!K19:K26))) ->  | AE25: 0 | AF25: 0
O26: 0 | R26: 0 | S26: 0 | T26: 0 | V26: =IF(U26="","",WORKDAY(U26-1,R26,Calendrier!K2:K7)) ->  | AB26: =IF(U26="","",IF(V26<=$V2,NETWORKDAYS(U26,V26,Calendrier!K20:K27),NETWORKDAYS(U26,$V2,Calendrier!K20:K27))) ->  | AE26: 0 | AF26: 0
S27: =SUM(S8:S26) -> 0 | T27: =SUM(T8:T26) -> 0 | AE27: =SUM(AE8:AE26) -> 0 | AF27: =SUM(AF8:AF26) -> 0
A31: Recrutement
A32: Nom | B32: Prénom | C32: Contact | F32: Apport WOF | I32: Préavis | J32: Salaire actuel | L32: Prétentions | M32: Salaire embauche | N32: % honoraires | O32: % WOF Oui | P32: % WOF Non | Q32: Démarrage | R32: Marge sur vente Sand | S32: Part WOF
F33: Non | N33: 0.1 | O33: 50 | P33: 20 | R33: =IF(F33="Oui",M33*N33/2,((M33*N33)/100)*(100-P33)) -> 0 | S33: =IF(F33="Oui",((M33*N33)/100)*O33,((M33*N33)/100)*P33) -> 0
R34: =IF(F34="Oui",M34*N34/2,((M34*N34)/100)*(100-P34)) -> 0 | S34: =IF(F34="Oui",((M34*N34)/100)*O34,((M34*N34)/100)*P34) -> 0
R35: =IF(F35="Oui",M35*N35/2,((M35*N35)/100)*(100-P35)) -> 0 | S35: =IF(F35="Oui",((M35*N35)/100)*O35,((M35*N35)/100)*P35) -> 0
R36: =IF(F36="Oui",M36*N36/2,((M36*N36)/100)*(100-P36)) -> 0 | S36: =IF(F36="Oui",((M36*N36)/100)*O36,((M36*N36)/100)*P36) -> 0
P37: Total | R37: =SUM(R33:R36) -> 0 | S37: =SUM(S33:S36) -> 0

Sheet Aout 21
A1: =nomfeuille() ->  | AE1: 2021
E2: OK | F2: A faire | G2: En attente | J2: PORTAGE | L2: EIRL | M2: SARL | N2: SASU | O2: Micro | Q2: RCO | R2: Rclient | S2: Oui | T2: Non | U2: =Calendrier!H69 -> 2021-08-01 | V2: =Calendrier!C80 -> 2021-08-31
A5: Free-lance
A6: COLLABORATEUR | L6: NEGOCIATION | R6: CONTRAT | W6: CLIENT | AA6: TIME SHEET
A7: NOM | B7: Prénom | C7: CONTACT | D7: Statut | E7: ID | F7: RIB | G7: K-BIS | H7: ASS-PRO | I7: Nb de jours | J7: TJM achat | K7: TJM contrat | L7: TJM vente | M7: Marge | N7: Effort | O7: TJM Apres effort | P7: Durée contrat | Q7: Facture | R7: Nb Jours/contrat | S7: CA total | T7: Marge Contrat | U7: Debut de contrat | V7: Fin de contrat | W7: CONTACT | X7: FONCTION | Y7: TELEPHONE | Z7: MAIL | AA7: Time sheet | AB7: Nb jours prévus | AC7: Nb jours restants contrat | AD7: =_xlfn.CONCAT("Nb jours/ ",nomfeuille()," / Facturés") ->  | AE7: =_xlfn.CONCAT("Chiffre / ",nomfeuille()) ->  | AF7: =_xlfn.CONCAT("Chiffre Marge / ",nomfeuille()) -> 
M8: =IF(J8="","",(L8/J8)-1) ->  | O8: =L8-N8 -> 0 | R8: =PRODUCT(I8,P8) -> 0 | S8: =PRODUCT(O8,R8) -> 0 | T8: =PRODUCT(R8,(L8-J8)) -> 0 | V8: =IF(U8="","",WORKDAY(U8-1,R8,Calendrier!K2:K7)) ->  | AB8: =IF(U8="","",IF(V8<=V2,NETWORKDAYS(U8,V8,Calendrier!K2:K9),NETWORKDAYS(U8,V2,Calendrier!K2:K9))) ->  | AC8: =IF(AB8="","",R8-AB8) ->  | AE8: =PRODUCT(O8,AD8) -> 0 | AF8: =PRODUCT(M8,AE8) -> 0
M9: =IF(J9="","",(L9/J9)-1) ->  | O9: =L9-N9 -> 0 | R9: =PRODUCT(I9,P9) -> 0 | S9: =PRODUCT(O9,R9) -> 0 | T9: =PRODUCT(R9,(L9-J9)) -> 0 | V9: =IF(U9="","",WORKDAY(U9-1,R9,Calendrier!K2:K7)) ->  | AB9: =IF(U9="","",IF(V9<=$V2,NETWORKDAYS(U9,V9,Calendrier!K3:K10),NETWORKDAYS(U9,$V2,Calendrier!K3:K10))) ->  | AC9: =IF(AB9="","",R9-AB9) ->  | AE9: =PRODUCT(O9,AD9) -> 0 | AF9: =PRODUCT(M9,AE9) -> 0
M10: =IF(J10="","",(L10/J10)-1) ->  | O10: 0 | R10: 0 | S10: =PRODUCT(O10,R10) -> 0 | T10: 0 | V10: =IF(U10="","",WORKDAY(U10-1,R10,Calendrier!K2:K7)) ->  | AB10: =IF(U10="","",IF(V10<=$V2,NETWORKDAYS(U10,V10,Calendrier!K4:K11),NETWORKDAYS(U10,$V2,Calendrier!K4:K11))) ->  | AE10: 0 | AF10: 0
O11: 0 | R11: 0 | S11: 0 | T11: 0 | V11: =IF(U11="","",WORKDAY(U11-1,R11,Calendrier!K2:K7)) ->  | AB11: =IF(U11="","",IF(V11<=$V2,NETWORKDAYS(U11,V11,Calendrier!K5:K12),NETWORKDAYS(U11,$V2,Calendrier!K5:K12))) ->  | AE11: 0 | AF11: 0
O12: 0 | R12: 0 | S12: 0 | T12: 0 | V12: =IF(U12="","",WORKDAY(U12-1,R12,Calendrier!K2:K7)) ->  | AB12: =IF(U12="","",IF(V12<=$V2,NETWORKDAYS(U12,V12,Calendrier!K6:K13),NETWORKDAYS(U12,$V2,Calendrier!K6:K13))) ->  | AE12: 0 | AF12: 0
O13: 0 | R13: 0 | S13: 0 | T13: 0 | V13: =IF(U13="","",WORKDAY(U13-1,R13,Calendrier!K2:K7)) ->  | AB13: =IF(U13="","",IF(V13<=$V2,NETWORKDAYS(U13,V13,Calendrier!K7:K14),NETWORKDAYS(U13,$V2,Calendrier!K7:K14))) ->  | AE13: 0 | AF13: 0
O14: 0 | R14: 0 | S14: 0 | T14: 0 | V14: =IF(U14="","",WORKDAY(U14-1,R14,Calendrier!K2:K7)) ->  | AB14: =IF(U14="","",IF(V14<=$V2,NETWORKDAYS(U14,V14,Calendrier!K8:K15),NETWORKDAYS(U14,$V2,Calendrier!K8:K15))) ->  | AE14: 0 | AF14: 0
O15: 0 | R15: =PRODUCT(I15,P15) -> 0 | S15: 0 | T15: 0 | V15: =IF(U15="","",WORKDAY(U15-1,R15,Calendrier!K2:K7)) ->  | AB15: =IF(U15="","",IF(V15<=$V2,NETWORKDAYS(U15,V15,Calendrier!K9:K16),NETWORKDAYS(U15,$V2,Calendrier!K9:K16))) ->  | AE15: 0 | AF15: 0
O16: 0 | R16: 0 | S16: 0 | T16: 0 | V16: =IF(U16="","",WORKDAY(U16-1,R16,Calendrier!K2:K7)) ->  | AB16: =IF(U16="","",IF(V16<=$V2,NETWORKDAYS(U16,V16,Calendrier!K10:K17),NETWORKDAYS(U16,$V2,Calendrier!K10:K17))) ->  | AE16: 0 | AF16: 0
O17: 0 | R17: 0 | S17: 0 | T17: 0 | V17: =IF(U17="","",WORKDAY(U17-1,R17,Calendrier!K2:K7)) ->  | AB17: =IF(U17="","",IF(V17<=$V2,NETWORKDAYS(U17,V17,Calendrier!K11:K18),NETWORKDAYS(U17,$V2,Calendrier!K11:K18))) ->  | AE17: 0 | AF17: 0
O18: 0 | R18: 0 | S18: 0 | T18: 0 | V18: =IF(U18="","",WORKDAY(U18-1,R18,Calendrier!K2:K7)) ->  | AB18: =IF(U18="","",IF(V18<=$V2,NETWORKDAYS(U18,V18,Calendrier!K12:K19),NETWORKDAYS(U18,$V2,Calendrier!K12:K19))) ->  | AE18: 0 | AF18: 0
O19: 0 | R19: 0 | S19: 0 | T19: 0 | V19: =IF(U19="","",WORKDAY(U19-1,R19,Calendrier!K2:K7)) ->  | AB19: =IF(U19="","",IF(V19<=$V2,NETWORKDAYS(U19,V19,Calendrier!K13:K20),NETWORKDAYS(U19,$V2,Calendrier!K13:K20))) ->  | AE19: 0 | AF19: 0
O20: 0 | R20: 0 | S20: 0 | T20: 0 | V20: =IF(U20="","",WORKDAY(U20-1,R20,Calendrier!K2:K7)) ->  | AB20: =IF(U20="","",IF(V20<=$V2,NETWORKDAYS(U20,V20,Calendrier!K14:K21),NETWORKDAYS(U20,$V2,Calendrier!K14:K21))) ->  | AE20: 0 | AF20: 0
O21: 0 | R21: 0 | S21: 0 | T21: 0 | V21: =IF(U21="","",WORKDAY(U21-1,R21,Calendrier!K2:K7)) ->  | AB21: =IF(U21="","",IF(V21<=$V2,NETWORKDAYS(U21,V21,Calendrier!K15:K22),NETWORKDAYS(U21,$V2,Calendrier!K15:K22))) ->  | AE21: 0 | AF21: 0
O22: 0 | R22: 0 | S22: 0 | T22: 0 | V22: =IF(U22="","",WORKDAY(U22-1,R22,Calendrier!K2:K7)) ->  | AB22: =IF(U22="","",IF(V22<=$V2,NETWORKDAYS(U22,V22,Calendrier!K16:K23),NETWORKDAYS(U22,$V2,Calendrier!K16:K23))) ->  | AE22: 0 | AF22: 0
O23: 0 | R23: 0 | S23: 0 | T23: 0 | V23: =IF(U23="","",WORKDAY(U23-1,R23,Calendrier!K2:K7)) ->  | AB23: =IF(U23="","",IF(V23<=$V2,NETWORKDAYS(U23,V23,Calendrier!K17:K24),NETWORKDAYS(U23,$V2,Calendrier!K17:K24))) ->  | AE23: 0 | AF23: 0
O24: 0 | R24: 0 | S24: 0 | T24: 0 | V24: =IF(U24="","",WORKDAY(U24-1,R24,Calendrier!K2:K7)) ->  | AB24: =IF(U24="","",IF(V24<=$V2,NETWORKDAYS(U24,V24,Calendrier!K18:K25),NETWORKDAYS(U24,$V2,Calendrier!K18:K25))) ->  | AE24: 0 | AF24: 0
O25: 0 | R25: 0 | S25: 0 | T25: 0 | V25: =IF(U25="","",WORKDAY(U25-1,R25,Calendrier!K2:K7)) ->  | AB25: =IF(U25="","",IF(V25<=$V2,NETWORKDAYS(U25,V25,Calendrier!K19:K26),NETWORKDAYS(U25,$V2,Calendrier!K19:K26))) ->  | AE25: 0 | AF25: 0
O26: 0 | R26: 0 | S26: 0 | T26: 0 | V26: =IF(U26="","",WORKDAY(U26-1,R26,Calendrier!K2:K7)) ->  | AB26: =IF(U26="","",IF(V26<=$V2,NETWORKDAYS(U26,V26,Calendrier!K20:K27),NETWORKDAYS(U26,$V2,Calendrier!K20:K27))) ->  | AE26: 0 | AF26: 0
S27: =SUM(S8:S26) -> 0 | T27: =SUM(T8:T26) -> 0 | AE27: =SUM(AE8:AE26) -> 0 | AF27: =SUM(AF8:AF26) -> 0
A31: Recrutement
A32: Nom | B32: Prénom | C32: Contact | F32: Apport WOF | I32: Préavis | J32: Salaire actuel | L32: Prétentions | M32: Salaire embauche | N32: % honoraires | O32: % WOF Oui | P32: % WOF Non | Q32: Démarrage | R32: Marge sur vente Sand | S32: Part WOF
F33: Non | N33: 0.1 | O33: 50 | P33: 20 | R33: =IF(F33="Oui",M33*N33/2,((M33*N33)/100)*(100-P33)) -> 0 | S33: =IF(F33="Oui",((M33*N33)/100)*O33,((M33*N33)/100)*P33) -> 0
R34: =IF(F34="Oui",M34*N34/2,((M34*N34)/100)*(100-P34)) -> 0 | S34: =IF(F34="Oui",((M34*N34)/100)*O34,((M34*N34)/100)*P34) -> 0
R35: =IF(F35="Oui",M35*N35/2,((M35*N35)/100)*(100-P35)) -> 0 | S35: =IF(F35="Oui",((M35*N35)/100)*O35,((M35*N35)/100)*P35) -> 0
R36: =IF(F36="Oui",M36*N36/2,((M36*N36)/100)*(100-P36)) -> 0 | S36: =IF(F36="Oui",((M36*N36)/100)*O36,((M36*N36)/100)*P36) -> 0
P37: Total | R37: =SUM(R33:R36) -> 0 | S37: =SUM(S33:S36) -> 0

Sheet Septembre 21
A1: =nomfeuille() ->  | AE1: 2021
E2: OK | F2: A faire | G2: En attente | J2: PORTAGE | L2: EIRL | M2: SARL | N2: SASU | O2: Micro | Q2: RCO | R2: Rclient | S2: Oui | T2: Non | U2: =Calendrier!D80 -> 2021-09-01 | V2: =Calendrier!E89 -> 2021-09-30
A5: Free-lance
A6: COLLABORATEUR | L6: NEGOCIATION | R6: CONTRAT | W6: CLIENT | AA6: TIME SHEET
A7: NOM | B7: Prénom | C7: CONTACT | D7: Statut | E7: ID | F7: RIB | G7: K-BIS | H7: ASS-PRO | I7: Nb de jours | J7: TJM achat | K7: TJM contrat | L7: TJM vente | M7: Marge | N7: Effort | O7: TJM Apres effort | P7: Durée contrat | Q7: Facture | R7: Nb Jours/contrat | S7: CA total | T7: Marge Contrat | U7: Debut de contrat | V7: Fin de contrat | W7: CONTACT | X7: FONCTION | Y7: TELEPHONE | Z7: MAIL | AA7: Time sheet | AB7: Nb jours prévus | AC7: Nb jours restants contrat | AD7: =_xlfn.CONCAT("Nb jours/ ",nomfeuille()," / Facturés") ->  | AE7: =_xlfn.CONCAT("Chiffre / ",nomfeuille()) ->  | AF7: =_xlfn.CONCAT("Chiffre Marge / ",nomfeuille()) -> 
M8: =IF(J8="","",(L8/J8)-1) ->  | O8: =L8-N8 -> 0 | R8: =PRODUCT(I8,P8) -> 0 | S8: =PRODUCT(O8,R8) -> 0 | T8: =PRODUCT(R8,(L8-J8)) -> 0 | V8: =IF(U8="","",WORKDAY(U8-1,R8,Calendrier!K2:K7)) ->  | AB8: =IF(U8="","",IF(V8<=V2,NETWORKDAYS(U8,V8,Calendrier!K2:K9),NETWORKDAYS(U8,V2,Calendrier!K2:K9))) ->  | AC8: =IF(AB8="","",R8-AB8) ->  | AE8: =PRODUCT(O8,AD8) -> 0 | AF8: =PRODUCT(M8,AE8) -> 0
M9: =IF(J9="","",(L9/J9)-1) ->  | O9: =L9-N9 -> 0 | R9: =PRODUCT(I9,P9) -> 0 | S9: =PRODUCT(O9,R9) -> 0 | T9: =PRODUCT(R9,(L9-J9)) -> 0 | V9: =IF(U9="","",WORKDAY(U9-1,R9,Calendrier!K2:K7)) ->  | AB9: =IF(U9="","",IF(V9<=$V2,NETWORKDAYS(U9,V9,Calendrier!K3:K10),NETWORKDAYS(U9,$V2,Calendrier!K3:K10))) ->  | AC9: =IF(AB9="","",R9-AB9) ->  | AE9: =PRODUCT(O9,AD9) -> 0 | AF9: =PRODUCT(M9,AE9) -> 0
M10: =IF(J10="","",(L10/J10)-1) ->  | O10: 0 | R10: 0 | S10: =PRODUCT(O10,R10) -> 0 | T10: 0 | V10: =IF(U10="","",WORKDAY(U10-1,R10,Calendrier!K2:K7)) ->  | AB10: =IF(U10="","",IF(V10<=$V2,NETWORKDAYS(U10,V10,Calendrier!K4:K11),NETWORKDAYS(U10,$V2,Calendrier!K4:K11))) ->  | AE10: 0 | AF10: 0
O11: 0 | R11: 0 | S11: 0 | T11: 0 | V11: =IF(U11="","",WORKDAY(U11-1,R11,Calendrier!K2:K7)) ->  | AB11: =IF(U11="","",IF(V11<=$V2,NETWORKDAYS(U11,V11,Calendrier!K5:K12),NETWORKDAYS(U11,$V2,Calendrier!K5:K12))) ->  | AE11: 0 | AF11: 0
O12: 0 | R12: 0 | S12: 0 | T12: 0 | V12: =IF(U12="","",WORKDAY(U12-1,R12,Calendrier!K2:K7)) ->  | AB12: =IF(U12="","",IF(V12<=$V2,NETWORKDAYS(U12,V12,Calendrier!K6:K13),NETWORKDAYS(U12,$V2,Calendrier!K6:K13))) ->  | AE12: 0 | AF12: 0
O13: 0 | R13: 0 | S13: 0 | T13: 0 | V13: =IF(U13="","",WORKDAY(U13-1,R13,Calendrier!K2:K7)) ->  | AB13: =IF(U13="","",IF(V13<=$V2,NETWORKDAYS(U13,V13,Calendrier!K7:K14),NETWORKDAYS(U13,$V2,Calendrier!K7:K14))) ->  | AE13: 0 | AF13: 0
O14: 0 | R14: 0 | S14: 0 | T14: 0 | V14: =IF(U14="","",WORKDAY(U14-1,R14,Calendrier!K2:K7)) ->  | AB14: =IF(U14="","",IF(V14<=$V2,NETWORKDAYS(U14,V14,Calendrier!K8:K15),NETWORKDAYS(U14,$V2,Calendrier!K8:K15))) ->  | AE14: 0 | AF14: 0
O15: 0 | R15: =PRODUCT(I15,P15) -> 0 | S15: 0 | T15: 0 | V15: =IF(U15="","",WORKDAY(U15-1,R15,Calendrier!K2:K7)) ->  | AB15: =IF(U15="","",IF(V15<=$V2,NETWORKDAYS(U15,V15,Calendrier!K9:K16),NETWORKDAYS(U15,$V2,Calendrier!K9:K16))) ->  | AE15: 0 | AF15: 0
O16: 0 | R16: 0 | S16: 0 | T16: 0 | V16: =IF(U16="","",WORKDAY(U16-1,R16,Calendrier!K2:K7)) ->  | AB16: =IF(U16="","",IF(V16<=$V2,NETWORKDAYS(U16,V16,Calendrier!K10:K17),NETWORKDAYS(U16,$V2,Calendrier!K10:K17))) ->  | AE16: 0 | AF16: 0
O17: 0 | R17: 0 | S17: 0 | T17: 0 | V17: =IF(U17="","",WORKDAY(U17-1,R17,Calendrier!K2:K7)) ->  | AB17: =IF(U17="","",IF(V17<=$V2,NETWORKDAYS(U17,V17,Calendrier!K11:K18),NETWORKDAYS(U17,$V2,Calendrier!K11:K18))) ->  | AE17: 0 | AF17: 0
O18: 0 | R18: 0 | S18: 0 | T18: 0 | V18: =IF(U18="","",WORKDAY(U18-1,R18,Calendrier!K2:K7)) ->  | AB18: =IF(U18="","",IF(V18<=$V2,NETWORKDAYS(U18,V18,Calendrier!K12:K19),NETWORKDAYS(U18,$V2,Calendrier!K12:K19))) ->  | AE18: 0 | AF18: 0
O19: 0 | R19: 0 | S19: 0 | T19: 0 | V19: =IF(U19="","",WORKDAY(U19-1,R19,Calendrier!K2:K7)) ->  | AB19: =IF(U19="","",IF(V19<=$V2,NETWORKDAYS(U19,V19,Calendrier!K13:K20),NETWORKDAYS(U19,$V2,Calendrier!K13:K20))) ->  | AE19: 0 | AF19: 0
O20: 0 | R20: 0 | S20: 0 | T20: 0 | V20: =IF(U20="","",WORKDAY(U20-1,R20,Calendrier!K2:K7)) ->  | AB20: =IF(U20="","",IF(V20<=$V2,NETWORKDAYS(U20,V20,Calendrier!K14:K21),NETWORKDAYS(U20,$V2,Calendrier!K14:K21))) ->  | AE20: 0 | AF20: 0
O21: 0 | R21: 0 | S21: 0 | T21: 0 | V21: =IF(U21="","",WORKDAY(U21-1,R21,Calendrier!K2:K7)) ->  | AB21: =IF(U21="","",IF(V21<=$V2,NETWORKDAYS(U21,V21,Calendrier!K15:K22),NETWORKDAYS(U21,$V2,Calendrier!K15:K22))) ->  | AE21: 0 | AF21: 0
O22: 0 | R22: 0 | S22: 0 | T22: 0 | V22: =IF(U22="","",WORKDAY(U22-1,R22,Calendrier!K2:K7)) ->  | AB22: =IF(U22="","",IF(V22<=$V2,NETWORKDAYS(U22,V22,Calendrier!K16:K23),NETWORKDAYS(U22,$V2,Calendrier!K16:K23))) ->  | AE22: 0 | AF22: 0
O23: 0 | R23: 0 | S23: 0 | T23: 0 | V23: =IF(U23="","",WORKDAY(U23-1,R23,Calendrier!K2:K7)) ->  | AB23: =IF(U23="","",IF(V23<=$V2,NETWORKDAYS(U23,V23,Calendrier!K17:K24),NETWORKDAYS(U23,$V2,Calendrier!K17:K24))) ->  | AE23: 0 | AF23: 0
O24: 0 | R24: 0 | S24: 0 | T24: 0 | V24: =IF(U24="","",WORKDAY(U24-1,R24,Calendrier!K2:K7)) ->  | AB24: =IF(U24="","",IF(V24<=$V2,NETWORKDAYS(U24,V24,Calendrier!K18:K25),NETWORKDAYS(U24,$V2,Calendrier!K18:K25))) ->  | AE24: 0 | AF24: 0
O25: 0 | R25: 0 | S25: 0 | T25: 0 | V25: =IF(U25="","",WORKDAY(U25-1,R25,Calendrier!K2:K7)) ->  | AB25: =IF(U25="","",IF(V25<=$V2,NETWORKDAYS(U25,V25,Calendrier!K19:K26),NETWORKDAYS(U25,$V2,Calendrier!K19:K26))) ->  | AE25: 0 | AF25: 0
O26: 0 | R26: 0 | S26: 0 | T26: 0 | V26: =IF(U26="","",WORKDAY(U26-1,R26,Calendrier!K2:K7)) ->  | AB26: =IF(U26="","",IF(V26<=$V2,NETWORKDAYS(U26,V26,Calendrier!K20:K27),NETWORKDAYS(U26,$V2,Calendrier!K20:K27))) ->  | AE26: 0 | AF26: 0
S27: =SUM(S8:S26) -> 0 | T27: =SUM(T8:T26) -> 0 | AE27: =SUM(AE8:AE26) -> 0 | AF27: =SUM(AF8:AF26) -> 0
A31: Recrutement
A32: Nom | B32: Prénom | C32: Contact | F32: Apport WOF | I32: Préavis | J32: Salaire actuel | L32: Prétentions | M32: Salaire embauche | N32: % honoraires | O32: % WOF Oui | P32: % WOF Non | Q32: Démarrage | R32: Marge sur vente Sand | S32: Part WOF
F33: Non | N33: 0.1 | O33: 50 | P33: 20 | R33: =IF(F33="Oui",M33*N33/2,((M33*N33)/100)*(100-P33)) -> 0 | S33: =IF(F33="Oui",((M33*N33)/100)*O33,((M33*N33)/100)*P33) -> 0
R34: =IF(F34="Oui",M34*N34/2,((M34*N34)/100)*(100-P34)) -> 0 | S34: =IF(F34="Oui",((M34*N34)/100)*O34,((M34*N34)/100)*P34) -> 0
R35: =IF(F35="Oui",M35*N35/2,((M35*N35)/100)*(100-P35)) -> 0 | S35: =IF(F35="Oui",((M35*N35)/100)*O35,((M35*N35)/100)*P35) -> 0
R36: =IF(F36="Oui",M36*N36/2,((M36*N36)/100)*(100-P36)) -> 0 | S36: =IF(F36="Oui",((M36*N36)/100)*O36,((M36*N36)/100)*P36) -> 0
P37: Total | R37: =SUM(R33:R36) -> 0 | S37: =SUM(S33:S36) -> 0

Sheet Octobre 21
A1: =nomfeuille() ->  | AE1: 2021
E2: OK | F2: A faire | G2: En attente | J2: PORTAGE | L2: EIRL | M2: SARL | N2: SASU | O2: Micro | Q2: RCO | R2: Rclient | S2: Oui | T2: Non | U2: =Calendrier!F89 -> 2021-10-01 | V2: =Calendrier!H98 -> 2021-10-31
A5: Free-lance
A6: COLLABORATEUR | L6: NEGOCIATION | R6: CONTRAT | W6: CLIENT | AA6: TIME SHEET
A7: NOM | B7: Prénom | C7: CONTACT | D7: Statut | E7: ID | F7: RIB | G7: K-BIS | H7: ASS-PRO | I7: Nb de jours | J7: TJM achat | K7: TJM contrat | L7: TJM vente | M7: Marge | N7: Effort | O7: TJM Apres effort | P7: Durée contrat | Q7: Facture | R7: Nb Jours/contrat | S7: CA total | T7: Marge Contrat | U7: Debut de contrat | V7: Fin de contrat | W7: CONTACT | X7: FONCTION | Y7: TELEPHONE | Z7: MAIL | AA7: Time sheet | AB7: Nb jours prévus | AC7: Nb jours restants contrat | AD7: =_xlfn.CONCAT("Nb jours/ ",nomfeuille()," / Facturés") ->  | AE7: =_xlfn.CONCAT("Chiffre / ",nomfeuille()) ->  | AF7: =_xlfn.CONCAT("Chiffre Marge / ",nomfeuille()) -> 
M8: =IF(J8="","",(L8/J8)-1) ->  | O8: =L8-N8 -> 0 | R8: =PRODUCT(I8,P8) -> 0 | S8: =PRODUCT(O8,R8) -> 0 | T8: =PRODUCT(R8,(L8-J8)) -> 0 | V8: =IF(U8="","",WORKDAY(U8-1,R8,Calendrier!K2:K7)) ->  | AB8: =IF(U8="","",IF(V8<=V2,NETWORKDAYS(U8,V8,Calendrier!K2:K9),NETWORKDAYS(U8,V2,Calendrier!K2:K9))) ->  | AC8: =IF(AB8="","",R8-AB8) ->  | AE8: =PRODUCT(O8,AD8) -> 0 | AF8: =PRODUCT(M8,AE8) -> 0
M9: =IF(J9="","",(L9/J9)-1) ->  | O9: =L9-N9 -> 0 | R9: =PRODUCT(I9,P9) -> 0 | S9: =PRODUCT(O9,R9) -> 0 | T9: =PRODUCT(R9,(L9-J9)) -> 0 | V9: =IF(U9="","",WORKDAY(U9-1,R9,Calendrier!K2:K7)) ->  | AB9: =IF(U9="","",IF(V9<=$V2,NETWORKDAYS(U9,V9,Calendrier!K3:K10),NETWORKDAYS(U9,$V2,Calendrier!K3:K10))) ->  | AC9: =IF(AB9="","",R9-AB9) ->  | AE9: =PRODUCT(O9,AD9) -> 0 | AF9: =PRODUCT(M9,AE9) -> 0
M10: =IF(J10="","",(L10/J10)-1) ->  | O10: 0 | R10: 0 | S10: =PRODUCT(O10,R10) -> 0 | T10: 0 | V10: =IF(U10="","",WORKDAY(U10-1,R10,Calendrier!K2:K7)) ->  | AB10: =IF(U10="","",IF(V10<=$V2,NETWORKDAYS(U10,V10,Calendrier!K4:K11),NETWORKDAYS(U10,$V2,Calendrier!K4:K11))) ->  | AE10: 0 | AF10: 0
O11: 0 | R11: 0 | S11: 0 | T11: 0 | V11: =IF(U11="","",WORKDAY(U11-1,R11,Calendrier!K2:K7)) ->  | AB11: =IF(U11="","",IF(V11<=$V2,NETWORKDAYS(U11,V11,Calendrier!K5:K12),NETWORKDAYS(U11,$V2,Calendrier!K5:K12))) ->  | AE11: 0 | AF11: 0
O12: 0 | R12: 0 | S12: 0 | T12: 0 | V12: =IF(U12="","",WORKDAY(U12-1,R12,Calendrier!K2:K7)) ->  | AB12: =IF(U12="","",IF(V12<=$V2,NETWORKDAYS(U12,V12,Calendrier!K6:K13),NETWORKDAYS(U12,$V2,Calendrier!K6:K13))) ->  | AE12: 0 | AF12: 0
O13: 0 | R13: 0 | S13: 0 | T13: 0 | V13: =IF(U13="","",WORKDAY(U13-1,R13,Calendrier!K2:K7)) ->  | AB13: =IF(U13="","",IF(V13<=$V2,NETWORKDAYS(U13,V13,Calendrier!K7:K14),NETWORKDAYS(U13,$V2,Calendrier!K7:K14))) ->  | AE13: 0 | AF13: 0
O14: 0 | R14: 0 | S14: 0 | T14: 0 | V14: =IF(U14="","",WORKDAY(U14-1,R14,Calendrier!K2:K7)) ->  | AB14: =IF(U14="","",IF(V14<=$V2,NETWORKDAYS(U14,V14,Calendrier!K8:K15),NETWORKDAYS(U14,$V2,Calendrier!K8:K15))) ->  | AE14: 0 | AF14: 0
O15: 0 | R15: =PRODUCT(I15,P15) -> 0 | S15: 0 | T15: 0 | V15: =IF(U15="","",WORKDAY(U15-1,R15,Calendrier!K2:K7)) ->  | AB15: =IF(U15="","",IF(V15<=$V2,NETWORKDAYS(U15,V15,Calendrier!K9:K16),NETWORKDAYS(U15,$V2,Calendrier!K9:K16))) ->  | AE15: 0 | AF15: 0
O16: 0 | R16: 0 | S16: 0 | T16: 0 | V16: =IF(U16="","",WORKDAY(U16-1,R16,Calendrier!K2:K7)) ->  | AB16: =IF(U16="","",IF(V16<=$V2,NETWORKDAYS(U16,V16,Calendrier!K10:K17),NETWORKDAYS(U16,$V2,Calendrier!K10:K17))) ->  | AE16: 0 | AF16: 0
O17: 0 | R17: 0 | S17: 0 | T17: 0 | V17: =IF(U17="","",WORKDAY(U17-1,R17,Calendrier!K2:K7)) ->  | AB17: =IF(U17="","",IF(V17<=$V2,NETWORKDAYS(U17,V17,Calendrier!K11:K18),NETWORKDAYS(U17,$V2,Calendrier!K11:K18))) ->  | AE17: 0 | AF17: 0
O18: 0 | R18: 0 | S18: 0 | T18: 0 | V18: =IF(U18="","",WORKDAY(U18-1,R18,Calendrier!K2:K7)) ->  | AB18: =IF(U18="","",IF(V18<=$V2,NETWORKDAYS(U18,V18,Calendrier!K12:K19),NETWORKDAYS(U18,$V2,Calendrier!K12:K19))) ->  | AE18: 0 | AF18: 0
O19: 0 | R19: 0 | S19: 0 | T19: 0 | V19: =IF(U19="","",WORKDAY(U19-1,R19,Calendrier!K2:K7)) ->  | AB19: =IF(U19="","",IF(V19<=$V2,NETWORKDAYS(U19,V19,Calendrier!K13:K20),NETWORKDAYS(U19,$V2,Calendrier!K13:K20))) ->  | AE19: 0 | AF19: 0
O20: 0 | R20: 0 | S20: 0 | T20: 0 | V20: =IF(U20="","",WORKDAY(U20-1,R20,Calendrier!K2:K7)) ->  | AB20: =IF(U20="","",IF(V20<=$V2,NETWORKDAYS(U20,V20,Calendrier!K14:K21),NETWORKDAYS(U20,$V2,Calendrier!K14:K21))) ->  | AE20: 0 | AF20: 0
O21: 0 | R21: 0 | S21: 0 | T21: 0 | V21: =IF(U21="","",WORKDAY(U21-1,R21,Calendrier!K2:K7)) ->  | AB21: =IF(U21="","",IF(V21<=$V2,NETWORKDAYS(U21,V21,Calendrier!K15:K22),NETWORKDAYS(U21,$V2,Calendrier!K15:K22))) ->  | AE21: 0 | AF21: 0
O22: 0 | R22: 0 | S22: 0 | T22: 0 | V22: =IF(U22="","",WORKDAY(U22-1,R22,Calendrier!K2:K7)) ->  | AB22: =IF(U22="","",IF(V22<=$V2,NETWORKDAYS(U22,V22,Calendrier!K16:K23),NETWORKDAYS(U22,$V2,Calendrier!K16:K23))) ->  | AE22: 0 | AF22: 0
O23: 0 | R23: 0 | S23: 0 | T23: 0 | V23: =IF(U23="","",WORKDAY(U23-1,R23,Calendrier!K2:K7)) ->  | AB23: =IF(U23="","",IF(V23<=$V2,NETWORKDAYS(U23,V23,Calendrier!K17:K24),NETWORKDAYS(U23,$V2,Calendrier!K17:K24))) ->  | AE23: 0 | AF23: 0
O24: 0 | R24: 0 | S24: 0 | T24: 0 | V24: =IF(U24="","",WORKDAY(U24-1,R24,Calendrier!K2:K7)) ->  | AB24: =IF(U24="","",IF(V24<=$V2,NETWORKDAYS(U24,V24,Calendrier!K18:K25),NETWORKDAYS(U24,$V2,Calendrier!K18:K25))) ->  | AE24: 0 | AF24: 0
O25: 0 | R25: 0 | S25: 0 | T25: 0 | V25: =IF(U25="","",WORKDAY(U25-1,R25,Calendrier!K2:K7)) ->  | AB25: =IF(U25="","",IF(V25<=$V2,NETWORKDAYS(U25,V25,Calendrier!K19:K26),NETWORKDAYS(U25,$V2,Calendrier!K19:K26))) ->  | AE25: 0 | AF25: 0
O26: 0 | R26: 0 | S26: 0 | T26: 0 | V26: =IF(U26="","",WORKDAY(U26-1,R26,Calendrier!K2:K7)) ->  | AB26: =IF(U26="","",IF(V26<=$V2,NETWORKDAYS(U26,V26,Calendrier!K20:K27),NETWORKDAYS(U26,$V2,Calendrier!K20:K27))) ->  | AE26: 0 | AF26: 0
S27: =SUM(S8:S26) -> 0 | T27: =SUM(T8:T26) -> 0 | AE27: =SUM(AE8:AE26) -> 0 | AF27: =SUM(AF8:AF26) -> 0
A31: Recrutement
A32: Nom | B32: Prénom | C32: Contact | F32: Apport WOF | I32: Préavis | J32: Salaire actuel | L32: Prétentions | M32: Salaire embauche | N32: % honoraires | O32: % WOF Oui | P32: % WOF Non | Q32: Démarrage | R32: Marge sur vente Sand | S32: Part WOF
F33: Non | N33: 0.1 | O33: 50 | P33: 20 | R33: =IF(F33="Oui",M33*N33/2,((M33*N33)/100)*(100-P33)) -> 0 | S33: =IF(F33="Oui",((M33*N33)/100)*O33,((M33*N33)/100)*P33) -> 0
R34: =IF(F34="Oui",M34*N34/2,((M34*N34)/100)*(100-P34)) -> 0 | S34: =IF(F34="Oui",((M34*N34)/100)*O34,((M34*N34)/100)*P34) -> 0
R35: =IF(F35="Oui",M35*N35/2,((M35*N35)/100)*(100-P35)) -> 0 | S35: =IF(F35="Oui",((M35*N35)/100)*O35,((M35*N35)/100)*P35) -> 0
R36: =IF(F36="Oui",M36*N36/2,((M36*N36)/100)*(100-P36)) -> 0 | S36: =IF(F36="Oui",((M36*N36)/100)*O36,((M36*N36)/100)*P36) -> 0
P37: Total | R37: =SUM(R33:R36) -> 0 | S37: =SUM(S33:S36) -> 0

Sheet Novembre 21
A1: =nomfeuille() ->  | AE1: 2021
E2: OK | F2: A faire | G2: En attente | J2: PORTAGE | L2: EIRL | M2: SARL | N2: SASU | O2: Micro | Q2: RCO | R2: Rclient | S2: Oui | T2: Non | U2: =Calendrier!B100 -> 2021-11-01 | V2: =Calendrier!C109 -> 2021-11-30
A5: Free-lance
A6: COLLABORATEUR | L6: NEGOCIATION | R6: CONTRAT | W6: CLIENT | AA6: TIME SHEET
A7: NOM | B7: Prénom | C7: CONTACT | D7: Statut | E7: ID | F7: RIB | G7: K-BIS | H7: ASS-PRO | I7: Nb de jours | J7: TJM achat | K7: TJM contrat | L7: TJM vente | M7: Marge | N7: Effort | O7: TJM Apres effort | P7: Durée contrat | Q7: Facture | R7: Nb Jours/contrat | S7: CA total | T7: Marge Contrat | U7: Debut de contrat | V7: Fin de contrat | W7: CONTACT | X7: FONCTION | Y7: TELEPHONE | Z7: MAIL | AA7: Time sheet | AB7: Nb jours prévus | AC7: Nb jours restants contrat | AD7: =_xlfn.CONCAT("Nb jours/ ",nomfeuille()," / Facturés") ->  | AE7: =_xlfn.CONCAT("Chiffre / ",nomfeuille()) ->  | AF7: =_xlfn.CONCAT("Chiffre Marge / ",nomfeuille()) -> 
M8: =IF(J8="","",(L8/J8)-1) ->  | O8: =L8-N8 -> 0 | R8: =PRODUCT(I8,P8) -> 0 | S8: =PRODUCT(O8,R8) -> 0 | T8: =PRODUCT(R8,(L8-J8)) -> 0 | V8: =IF(U8="","",WORKDAY(U8-1,R8,Calendrier!K2:K7)) ->  | AB8: =IF(U8="","",IF(V8<=V2,NETWORKDAYS(U8,V8,Calendrier!K2:K9),NETWORKDAYS(U8,V2,Calendrier!K2:K9))) ->  | AC8: =IF(AB8="","",R8-AB8) ->  | AE8: =PRODUCT(O8,AD8) -> 0 | AF8: =PRODUCT(M8,AE8) -> 0
M9: =IF(J9="","",(L9/J9)-1) ->  | O9: =L9-N9 -> 0 | R9: =PRODUCT(I9,P9) -> 0 | S9: =PRODUCT(O9,R9) -> 0 | T9: =PRODUCT(R9,(L9-J9)) -> 0 | V9: =IF(U9="","",WORKDAY(U9-1,R9,Calendrier!K2:K7)) ->  | AB9: =IF(U9="","",IF(V9<=$V2,NETWORKDAYS(U9,V9,Calendrier!K3:K10),NETWORKDAYS(U9,$V2,Calendrier!K3:K10))) ->  | AC9: =IF(AB9="","",R9-AB9) ->  | AE9: =PRODUCT(O9,AD9) -> 0 | AF9: =PRODUCT(M9,AE9) -> 0
M10: =IF(J10="","",(L10/J10)-1) ->  | O10: 0 | R10: 0 | S10: =PRODUCT(O10,R10) -> 0 | T10: 0 | V10: =IF(U10="","",WORKDAY(U10-1,R10,Calendrier!K2:K7)) ->  | AB10: =IF(U10="","",IF(V10<=$V2,NETWORKDAYS(U10,V10,Calendrier!K4:K11),NETWORKDAYS(U10,$V2,Calendrier!K4:K11))) ->  | AE10: 0 | AF10: 0
O11: 0 | R11: 0 | S11: 0 | T11: 0 | V11: =IF(U11="","",WORKDAY(U11-1,R11,Calendrier!K2:K7)) ->  | AB11: =IF(U11="","",IF(V11<=$V2,NETWORKDAYS(U11,V11,Calendrier!K5:K12),NETWORKDAYS(U11,$V2,Calendrier!K5:K12))) ->  | AE11: 0 | AF11: 0
O12: 0 | R12: 0 | S12: 0 | T12: 0 | V12: =IF(U12="","",WORKDAY(U12-1,R12,Calendrier!K2:K7)) ->  | AB12: =IF(U12="","",IF(V12<=$V2,NETWORKDAYS(U12,V12,Calendrier!K6:K13),NETWORKDAYS(U12,$V2,Calendrier!K6:K13))) ->  | AE12: 0 | AF12: 0
O13: 0 | R13: 0 | S13: 0 | T13: 0 | V13: =IF(U13="","",WORKDAY(U13-1,R13,Calendrier!K2:K7)) ->  | AB13: =IF(U13="","",IF(V13<=$V2,NETWORKDAYS(U13,V13,Calendrier!K7:K14),NETWORKDAYS(U13,$V2,Calendrier!K7:K14))) ->  | AE13: 0 | AF13: 0
O14: 0 | R14: 0 | S14: 0 | T14: 0 | V14: =IF(U14="","",WORKDAY(U14-1,R14,Calendrier!K2:K7)) ->  | AB14: =IF(U14="","",IF(V14<=$V2,NETWORKDAYS(U14,V14,Calendrier!K8:K15),NETWORKDAYS(U14,$V2,Calendrier!K8:K15))) ->  | AE14: 0 | AF14: 0
O15: 0 | R15: =PRODUCT(I15,P15) -> 0 | S15: 0 | T15: 0 | V15: =IF(U15="","",WORKDAY(U15-1,R15,Calendrier!K2:K7)) ->  | AB15: =IF(U15="","",IF(V15<=$V2,NETWORKDAYS(U15,V15,Calendrier!K9:K16),NETWORKDAYS(U15,$V2,Calendrier!K9:K16))) ->  | AE15: 0 | AF15: 0
O16: 0 | R16: 0 | S16: 0 | T16: 0 | V16: =IF(U16="","",WORKDAY(U16-1,R16,Calendrier!K2:K7)) ->  | AB16: =IF(U16="","",IF(V16<=$V2,NETWORKDAYS(U16,V16,Calendrier!K10:K17),NETWORKDAYS(U16,$V2,Calendrier!K10:K17))) ->  | AE16: 0 | AF16: 0
O17: 0 | R17: 0 | S17: 0 | T17: 0 | V17: =IF(U17="","",WORKDAY(U17-1,R17,Calendrier!K2:K7)) ->  | AB17: =IF(U17="","",IF(V17<=$V2,NETWORKDAYS(U17,V17,Calendrier!K11:K18),NETWORKDAYS(U17,$V2,Calendrier!K11:K18))) ->  | AE17: 0 | AF17: 0
O18: 0 | R18: 0 | S18: 0 | T18: 0 | V18: =IF(U18="","",WORKDAY(U18-1,R18,Calendrier!K2:K7)) ->  | AB18: =IF(U18="","",IF(V18<=$V2,NETWORKDAYS(U18,V18,Calendrier!K12:K19),NETWORKDAYS(U18,$V2,Calendrier!K12:K19))) ->  | AE18: 0 | AF18: 0
O19: 0 | R19: 0 | S19: 0 | T19: 0 | V19: =IF(U19="","",WORKDAY(U19-1,R19,Calendrier!K2:K7)) ->  | AB19: =IF(U19="","",IF(V19<=$V2,NETWORKDAYS(U19,V19,Calendrier!K13:K20),NETWORKDAYS(U19,$V2,Calendrier!K13:K20))) ->  | AE19: 0 | AF19: 0
O20: 0 | R20: 0 | S20: 0 | T20: 0 | V20: =IF(U20="","",WORKDAY(U20-1,R20,Calendrier!K2:K7)) ->  | AB20: =IF(U20="","",IF(V20<=$V2,NETWORKDAYS(U20,V20,Calendrier!K14:K21),NETWORKDAYS(U20,$V2,Calendrier!K14:K21))) ->  | AE20: 0 | AF20: 0
O21: 0 | R21: 0 | S21: 0 | T21: 0 | V21: =IF(U21="","",WORKDAY(U21-1,R21,Calendrier!K2:K7)) ->  | AB21: =IF(U21="","",IF(V21<=$V2,NETWORKDAYS(U21,V21,Calendrier!K15:K22),NETWORKDAYS(U21,$V2,Calendrier!K15:K22))) ->  | AE21: 0 | AF21: 0
O22: 0 | R22: 0 | S22: 0 | T22: 0 | V22: =IF(U22="","",WORKDAY(U22-1,R22,Calendrier!K2:K7)) ->  | AB22: =IF(U22="","",IF(V22<=$V2,NETWORKDAYS(U22,V22,Calendrier!K16:K23),NETWORKDAYS(U22,$V2,Calendrier!K16:K23))) ->  | AE22: 0 | AF22: 0
O23: 0 | R23: 0 | S23: 0 | T23: 0 | V23: =IF(U23="","",WORKDAY(U23-1,R23,Calendrier!K2:K7)) ->  | AB23: =IF(U23="","",IF(V23<=$V2,NETWORKDAYS(U23,V23,Calendrier!K17:K24),NETWORKDAYS(U23,$V2,Calendrier!K17:K24))) ->  | AE23: 0 | AF23: 0
O24: 0 | R24: 0 | S24: 0 | T24: 0 | V24: =IF(U24="","",WORKDAY(U24-1,R24,Calendrier!K2:K7)) ->  | AB24: =IF(U24="","",IF(V24<=$V2,NETWORKDAYS(U24,V24,Calendrier!K18:K25),NETWORKDAYS(U24,$V2,Calendrier!K18:K25))) ->  | AE24: 0 | AF24: 0
O25: 0 | R25: 0 | S25: 0 | T25: 0 | V25: =IF(U25="","",WORKDAY(U25-1,R25,Calendrier!K2:K7)) ->  | AB25: =IF(U25="","",IF(V25<=$V2,NETWORKDAYS(U25,V25,Calendrier!K19:K26),NETWORKDAYS(U25,$V2,Calendrier!K19:K26))) ->  | AE25: 0 | AF25: 0
O26: 0 | R26: 0 | S26: 0 | T26: 0 | V26: =IF(U26="","",WORKDAY(U26-1,R26,Calendrier!K2:K7)) ->  | AB26: =IF(U26="","",IF(V26<=$V2,NETWORKDAYS(U26,V26,Calendrier!K20:K27),NETWORKDAYS(U26,$V2,Calendrier!K20:K27))) ->  | AE26: 0 | AF26: 0
S27: =SUM(S8:S26) -> 0 | T27: =SUM(T8:T26) -> 0 | AE27: =SUM(AE8:AE26) -> 0 | AF27: =SUM(AF8:AF26) -> 0
A31: Recrutement
A32: Nom | B32: Prénom | C32: Contact | F32: Apport WOF | I32: Préavis | J32: Salaire actuel | L32: Prétentions | M32: Salaire embauche | N32: % honoraires | O32: % WOF Oui | P32: % WOF Non | Q32: Démarrage | R32: Marge sur vente Sand | S32: Part WOF
F33: Non | N33: 0.1 | O33: 50 | P33: 20 | R33: =IF(F33="Oui",M33*N33/2,((M33*N33)/100)*(100-P33)) -> 0 | S33: =IF(F33="Oui",((M33*N33)/100)*O33,((M33*N33)/100)*P33) -> 0
R34: =IF(F34="Oui",M34*N34/2,((M34*N34)/100)*(100-P34)) -> 0 | S34: =IF(F34="Oui",((M34*N34)/100)*O34,((M34*N34)/100)*P34) -> 0
R35: =IF(F35="Oui",M35*N35/2,((M35*N35)/100)*(100-P35)) -> 0 | S35: =IF(F35="Oui",((M35*N35)/100)*O35,((M35*N35)/100)*P35) -> 0
R36: =IF(F36="Oui",M36*N36/2,((M36*N36)/100)*(100-P36)) -> 0 | S36: =IF(F36="Oui",((M36*N36)/100)*O36,((M36*N36)/100)*P36) -> 0
P37: Total | R37: =SUM(R33:R36) -> 0 | S37: =SUM(S33:S36) -> 0

Sheet Décembre 21
A1: =nomfeuille() ->  | AE1: 2021
E2: OK | F2: A faire | G2: En attente | J2: PORTAGE | L2: EIRL | M2: SARL | N2: SASU | O2: Micro | Q2: RCO | R2: Rclient | S2: Oui | T2: Non | U2: =Calendrier!D109 -> 2021-12-01 | V2: =Calendrier!F118 -> 2021-12-31
A5: Free-lance
A6: COLLABORATEUR | L6: NEGOCIATION | R6: CONTRAT | W6: CLIENT | AA6: TIME SHEET
A7: NOM | B7: Prénom | C7: CONTACT | D7: Statut | E7: ID | F7: RIB | G7: K-BIS | H7: ASS-PRO | I7: Nb de jours | J7: TJM achat | K7: TJM contrat | L7: TJM vente | M7: Marge | N7: Effort | O7: TJM Apres effort | P7: Durée contrat | Q7: Facture | R7: Nb Jours/contrat | S7: CA total | T7: Marge Contrat | U7: Debut de contrat | V7: Fin de contrat | W7: CONTACT | X7: FONCTION | Y7: TELEPHONE | Z7: MAIL | AA7: Time sheet | AB7: Nb jours prévus | AC7: Nb jours restants contrat | AD7: =_xlfn.CONCAT("Nb jours/ ",nomfeuille()," / Facturés") ->  | AE7: =_xlfn.CONCAT("Chiffre / ",nomfeuille()) ->  | AF7: =_xlfn.CONCAT("Chiffre Marge / ",nomfeuille()) -> 
M8: =IF(J8="","",(L8/J8)-1) ->  | O8: =L8-N8 -> 0 | R8: =PRODUCT(I8,P8) -> 0 | S8: =PRODUCT(O8,R8) -> 0 | T8: =PRODUCT(R8,(L8-J8)) -> 0 | V8: =IF(U8="","",WORKDAY(U8-1,R8,Calendrier!K2:K7)) ->  | AB8: =IF(U8="","",IF(V8<=V2,NETWORKDAYS(U8,V8,Calendrier!K2:K9),NETWORKDAYS(U8,V2,Calendrier!K2:K9))) ->  | AC8: =IF(AB8="","",R8-AB8) ->  | AE8: =PRODUCT(O8,AD8) -> 0 | AF8: =PRODUCT(M8,AE8) -> 0
M9: =IF(J9="","",(L9/J9)-1) ->  | O9: =L9-N9 -> 0 | R9: =PRODUCT(I9,P9) -> 0 | S9: =PRODUCT(O9,R9) -> 0 | T9: =PRODUCT(R9,(L9-J9)) -> 0 | V9: =IF(U9="","",WORKDAY(U9-1,R9,Calendrier!K2:K7)) ->  | AB9: =IF(U9="","",IF(V9<=$V2,NETWORKDAYS(U9,V9,Calendrier!K3:K10),NETWORKDAYS(U9,$V2,Calendrier!K3:K10))) ->  | AC9: =IF(AB9="","",R9-AB9) ->  | AE9: =PRODUCT(O9,AD9) -> 0 | AF9: =PRODUCT(M9,AE9) -> 0
M10: =IF(J10="","",(L10/J10)-1) ->  | O10: 0 | R10: 0 | S10: =PRODUCT(O10,R10) -> 0 | T10: 0 | V10: =IF(U10="","",WORKDAY(U10-1,R10,Calendrier!K2:K7)) ->  | AB10: =IF(U10="","",IF(V10<=$V2,NETWORKDAYS(U10,V10,Calendrier!K4:K11),NETWORKDAYS(U10,$V2,Calendrier!K4:K11))) ->  | AE10: 0 | AF10: 0
O11: 0 | R11: 0 | S11: 0 | T11: 0 | V11: =IF(U11="","",WORKDAY(U11-1,R11,Calendrier!K2:K7)) ->  | AB11: =IF(U11="","",IF(V11<=$V2,NETWORKDAYS(U11,V11,Calendrier!K5:K12),NETWORKDAYS(U11,$V2,Calendrier!K5:K12))) ->  | AE11: 0 | AF11: 0
O12: 0 | R12: 0 | S12: 0 | T12: 0 | V12: =IF(U12="","",WORKDAY(U12-1,R12,Calendrier!K2:K7)) ->  | AB12: =IF(U12="","",IF(V12<=$V2,NETWORKDAYS(U12,V12,Calendrier!K6:K13),NETWORKDAYS(U12,$V2,Calendrier!K6:K13))) ->  | AE12: 0 | AF12: 0
O13: 0 | R13: 0 | S13: 0 | T13: 0 | V13: =IF(U13="","",WORKDAY(U13-1,R13,Calendrier!K2:K7)) ->  | AB13: =IF(U13="","",IF(V13<=$V2,NETWORKDAYS(U13,V13,Calendrier!K7:K14),NETWORKDAYS(U13,$V2,Calendrier!K7:K14))) ->  | AE13: 0 | AF13: 0
O14: 0 | R14: 0 | S14: 0 | T14: 0 | V14: =IF(U14="","",WORKDAY(U14-1,R14,Calendrier!K2:K7)) ->  | AB14: =IF(U14="","",IF(V14<=$V2,NETWORKDAYS(U14,V14,Calendrier!K8:K15),NETWORKDAYS(U14,$V2,Calendrier!K8:K15))) ->  | AE14: 0 | AF14: 0
O15: 0 | R15: =PRODUCT(I15,P15) -> 0 | S15: 0 | T15: 0 | V15: =IF(U15="","",WORKDAY(U15-1,R15,Calendrier!K2:K7)) ->  | AB15: =IF(U15="","",IF(V15<=$V2,NETWORKDAYS(U15,V15,Calendrier!K9:K16),NETWORKDAYS(U15,$V2,Calendrier!K9:K16))) ->  | AE15: 0 | AF15: 0
O16: 0 | R16: 0 | S16: 0 | T16: 0 | V16: =IF(U16="","",WORKDAY(U16-1,R16,Calendrier!K2:K7)) ->  | AB16: =IF(U16="","",IF(V16<=$V2,NETWORKDAYS(U16,V16,Calendrier!K10:K17),NETWORKDAYS(U16,$V2,Calendrier!K10:K17))) ->  | AE16: 0 | AF16: 0
O17: 0 | R17: 0 | S17: 0 | T17: 0 | V17: =IF(U17="","",WORKDAY(U17-1,R17,Calendrier!K2:K7)) ->  | AB17: =IF(U17="","",IF(V17<=$V2,NETWORKDAYS(U17,V17,Calendrier!K11:K18),NETWORKDAYS(U17,$V2,Calendrier!K11:K18))) ->  | AE17: 0 | AF17: 0
O18: 0 | R18: 0 | S18: 0 | T18: 0 | V18: =IF(U18="","",WORKDAY(U18-1,R18,Calendrier!K2:K7)) ->  | AB18: =IF(U18="","",IF(V18<=$V2,NETWORKDAYS(U18,V18,Calendrier!K12:K19),NETWORKDAYS(U18,$V2,Calendrier!K12:K19))) ->  | AE18: 0 | AF18: 0
O19: 0 | R19: 0 | S19: 0 | T19: 0 | V19: =IF(U19="","",WORKDAY(U19-1,R19,Calendrier!K2:K7)) ->  | AB19: =IF(U19="","",IF(V19<=$V2,NETWORKDAYS(U19,V19,Calendrier!K13:K20),NETWORKDAYS(U19,$V2,Calendrier!K13:K20))) ->  | AE19: 0 | AF19: 0
O20: 0 | R20: 0 | S20: 0 | T20: 0 | V20: =IF(U20="","",WORKDAY(U20-1,R20,Calendrier!K2:K7)) ->  | AB20: =IF(U20="","",IF(V20<=$V2,NETWORKDAYS(U20,V20,Calendrier!K14:K21),NETWORKDAYS(U20,$V2,Calendrier!K14:K21))) ->  | AE20: 0 | AF20: 0
O21: 0 | R21: 0 | S21: 0 | T21: 0 | V21: =IF(U21="","",WORKDAY(U21-1,R21,Calendrier!K2:K7)) ->  | AB21: =IF(U21="","",IF(V21<=$V2,NETWORKDAYS(U21,V21,Calendrier!K15:K22),NETWORKDAYS(U21,$V2,Calendrier!K15:K22))) ->  | AE21: 0 | AF21: 0
O22: 0 | R22: 0 | S22: 0 | T22: 0 | V22: =IF(U22="","",WORKDAY(U22-1,R22,Calendrier!K2:K7)) ->  | AB22: =IF(U22="","",IF(V22<=$V2,NETWORKDAYS(U22,V22,Calendrier!K16:K23),NETWORKDAYS(U22,$V2,Calendrier!K16:K23))) ->  | AE22: 0 | AF22: 0
O23: 0 | R23: 0 | S23: 0 | T23: 0 | V23: =IF(U23="","",WORKDAY(U23-1,R23,Calendrier!K2:K7)) ->  | AB23: =IF(U23="","",IF(V23<=$V2,NETWORKDAYS(U23,V23,Calendrier!K17:K24),NETWORKDAYS(U23,$V2,Calendrier!K17:K24))) ->  | AE23: 0 | AF23: 0
O24: 0 | R24: 0 | S24: 0 | T24: 0 | V24: =IF(U24="","",WORKDAY(U24-1,R24,Calendrier!K2:K7)) ->  | AB24: =IF(U24="","",IF(V24<=$V2,NETWORKDAYS(U24,V24,Calendrier!K18:K25),NETWORKDAYS(U24,$V2,Calendrier!K18:K25))) ->  | AE24: 0 | AF24: 0
O25: 0 | R25: 0 | S25: 0 | T25: 0 | V25: =IF(U25="","",WORKDAY(U25-1,R25,Calendrier!K2:K7)) ->  | AB25: =IF(U25="","",IF(V25<=$V2,NETWORKDAYS(U25,V25,Calendrier!K19:K26),NETWORKDAYS(U25,$V2,Calendrier!K19:K26))) ->  | AE25: 0 | AF25: 0
O26: 0 | R26: 0 | S26: 0 | T26: 0 | V26: =IF(U26="","",WORKDAY(U26-1,R26,Calendrier!K2:K7)) ->  | AB26: =IF(U26="","",IF(V26<=$V2,NETWORKDAYS(U26,V26,Calendrier!K20:K27),NETWORKDAYS(U26,$V2,Calendrier!K20:K27))) ->  | AE26: 0 | AF26: 0
S27: =SUM(S8:S26) -> 0 | T27: =SUM(T8:T26) -> 0 | AE27: =SUM(AE8:AE26) -> 0 | AF27: =SUM(AF8:AF26) -> 0
A31: Recrutement
A32: Nom | B32: Prénom | C32: Contact | F32: Apport WOF | I32: Préavis | J32: Salaire actuel | L32: Prétentions | M32: Salaire embauche | N32: % honoraires | O32: % WOF Oui | P32: % WOF Non | Q32: Démarrage | R32: Marge sur vente Sand | S32: Part WOF
F33: Non | N33: 0.1 | O33: 50 | P33: 20 | R33: =IF(F33="Oui",M33*N33/2,((M33*N33)/100)*(100-P33)) -> 0 | S33: =IF(F33="Oui",((M33*N33)/100)*O33,((M33*N33)/100)*P33) -> 0
R34: =IF(F34="Oui",M34*N34/2,((M34*N34)/100)*(100-P34)) -> 0 | S34: =IF(F34="Oui",((M34*N34)/100)*O34,((M34*N34)/100)*P34) -> 0
R35: =IF(F35="Oui",M35*N35/2,((M35*N35)/100)*(100-P35)) -> 0 | S35: =IF(F35="Oui",((M35*N35)/100)*O35,((M35*N35)/100)*P35) -> 0
R36: =IF(F36="Oui",M36*N36/2,((M36*N36)/100)*(100-P36)) -> 0 | S36: =IF(F36="Oui",((M36*N36)/100)*O36,((M36*N36)/100)*P36) -> 0
P37: Total | R37: =SUM(R33:R36) -> 0 | S37: =SUM(S33:S36) -> 0
